Workbook

Sheet Instructions (hidden)
B8: Instructions
B10: 1. Click 'Remove Old Data'.
B11: 2. Click 'Webfile Setup'.
B12: 3. Paste the current quarter's final extract into the 'Data Extract' sheet. N.B Data must be pasted in the exact same location for the macro to work, e.g. org code list should start in cell E4.
B14: 4. Update the Notes page - add a list of any trusts that did not submit. Make sure to update the date for which the data was submitted until (the date that the collection was closed).
B15: 5. Click 'Create Provisional Webfile'.
B16: 6. Go to the Provider tab and check the vlookup formulas and formatting of the table, check national totals as expected/correspond to raw extract
B17: 7. Go to the National and Regional tab and check the vlookup formulas and formatting of the table, check national totals as expected/correspond to raw extract
B18: 8. Once you have checked both of these tabs, save the working version (save as to update file name with most recent quarterand remove old version/with old name).
B19: 9. Click 'Create Final Webfile'. This will save a new version of the web file ('Cancelled Ops') ready for publication with values pasted etc in the same location as the working file (Working folder within Webfiles folder).
B20: 10. Move the new file: 'Cancelled Ops' to the Webfile folder and then add the Current Quarter and Year to the file name such that it looks like: 'QX YYYY-YY Cancelled Ops'
B23: Year: | D23: 2023-24
B24: Quarter: | D24: Q3
B25: Publication Period: | D25: October to December 2023
B26: Publilcation Date: | D26: 8th February 2024
B28: If revising data miss out 'Webfile Setup' and manually alter the Revision Date and Publication Status on the National & Regional sheet.

Sheet National & Regional
B2: Title: | C2: Cancelled Operations (elective only)
B3: Summary: | C3: The number of last minute cancelled elective operations in the quarter for non-clinical reasons
B5: Period: | C5: ="Quarter " &RIGHT(Quarter,1) & ", " & YearPeriod & " (" &PublicationPeriod &")" -> Quarter 3, 2023-24 (October to December 2023)
B6: Source: | C6: NHS England - QMCO data collection
B7: Basis: | C7: Provider, excluding IS organisations
B8: Published: | C8: =PublicationDate -> 8th February 2024
B9: Revised: | C9: -
B10: Status: | C10: Public
B11: Contact: | C11: england.nhsdata@nhs.net
B12: Guidance documents and latest statistical commentary relating to this collection can be found here:
B13: http://www.england.nhs.uk/statistics/cancelled-elective-operations/cancelled-ops-data/
B15: National & Regional Level Data
B16: Region Code | C16: Region Name | D16: Number of last minute elective operations cancelled for non clinical reasons | E16: Number of patients not treated within 28 days of last minute elective cancellation
B17: - | C17: England (Excluding Independent Sector) | D17: =SUM(D19:D25) -> 20372 | E17: =SUM(E19:E25) -> 4913
B19: Y56 | C19: LONDON COMMISSIONING REGION | D19: =SUMIFS(Provider!$F:$F,Provider!$B:$B,B19,Provider!$D:$D,"=R*") -> 2601 | E19: =SUMIFS(Provider!$G:$G,Provider!$B:$B,B19,Provider!$D:$D,"=R*") -> 542
B20: Y58 | C20: SOUTH WEST COMMISSIONING REGION | D20: =SUMIFS(Provider!$F:$F,Provider!$B:$B,B20,Provider!$D:$D,"=R*") -> 2503 | E20: =SUMIFS(Provider!$G:$G,Provider!$B:$B,B20,Provider!$D:$D,"=R*") -> 698
B21: Y59 | C21: SOUTH EAST COMMISSIONING REGION | D21: =SUMIFS(Provider!$F:$F,Provider!$B:$B,B21,Provider!$D:$D,"=R*") -> 2583 | E21: =SUMIFS(Provider!$G:$G,Provider!$B:$B,B21,Provider!$D:$D,"=R*") -> 747
B22: Y60 | C22: MIDLANDS COMMISSIONING REGION | D22: =SUMIFS(Provider!$F:$F,Provider!$B:$B,B22,Provider!$D:$D,"=R*") -> 4422 | E22: =SUMIFS(Provider!$G:$G,Provider!$B:$B,B22,Provider!$D:$D,"=R*") -> 1253
B23: Y61 | C23: EAST OF ENGLAND COMMISSIONING REGION | D23: =SUMIFS(Provider!$F:$F,Provider!$B:$B,B23,Provider!$D:$D,"=R*") -> 2364 | E23: =SUMIFS(Provider!$G:$G,Provider!$B:$B,B23,Provider!$D:$D,"=R*") -> 513
B24: Y62 | C24: NORTH WEST COMMISSIONING REGION | D24: =SUMIFS(Provider!$F:$F,Provider!$B:$B,B24,Provider!$D:$D,"=R*") -> 3250 | E24: =SUMIFS(Provider!$G:$G,Provider!$B:$B,B24,Provider!$D:$D,"=R*") -> 695
B25: Y63 | C25: NORTH EAST AND YORKSHIRE COMMISSIONING REGION | D25: =SUMIFS(Provider!$F:$F,Provider!$B:$B,B25,Provider!$D:$D,"=R*") -> 2649 | E25: =SUMIFS(Provider!$G:$G,Provider!$B:$B,B25,Provider!$D:$D,"=R*") -> 465
B27: Note: Please refer to the 'Guidance & Definitions' for information regarding the data.

Sheet Provider
B2: Title: | C2: Cancelled Operations (elective only)
B3: Summary: | C3: The number of last minute cancelled elective operations in the quarter for non-clinical reasons, NHS provider organisations in England
B5: Period: | C5: ='National & Regional'!C5 -> Quarter 3, 2023-24 (October to December 2023)
B6: Source: | C6: NHS England - QMCO data collection
B7: Basis: | C7: Provider
B8: Published: | C8: ='National & Regional'!C8 -> 8th February 2024
B9: Revised: | C9: ='National & Regional'!C9 -> -
B10: Status: | C10: ='National & Regional'!C10 -> Public
B11: Contact: | C11: england.nhsdata@nhs.net
B12: Guidance documents and latest statistical commentary relating to this collection can be found here:
B13: http://www.england.nhs.uk/statistics/cancelled-elective-operations/cancelled-ops-data/
B15: Provider Level Data
B16: Region Code | C16: Region Name | D16: Organisation Code | E16: Organisation Name | F16: Number of last minute elective operations cancelled for non clinical reasons | G16: Number of patients not treated within 28 days of last minute elective cancellation
B17: - | D17: - | E17: England (Excluding Independent Sector) | F17: =SUMIF($D$20:$D$295,"=R*",$F$20:$F$295) -> 20372 | G17: =SUMIF($D$20:$D$295,"=R*",$G$20:$G$295) -> 4913
B18: - | D18: - | E18: England (Including Independent Sector) | F18: =SUM(F20:F295) -> 20389 | G18: =SUM(G20:G295) -> 4921
B20: Y56 | C20: LONDON COMMISSIONING REGION | D20: R1H | E20: BARTS HEALTH NHS TRUST | F20: =VLOOKUP($D20,'Data Extract'!$E:$J,5,0) -> 328 | G20: =VLOOKUP($D20,'Data Extract'!$E:$J,6,0) -> 79
B21: Y56 | C21: LONDON COMMISSIONING REGION | D21: R1K | E21: LONDON NORTH WEST UNIVERSITY HEALTHCARE NHS TRUST | F21: =VLOOKUP($D21,'Data Extract'!$E:$J,5,0) -> 110 | G21: =VLOOKUP($D21,'Data Extract'!$E:$J,6,0) -> 0
B22: Y56 | C22: LONDON COMMISSIONING REGION | D22: RAL | E22: ROYAL FREE LONDON NHS FOUNDATION TRUST | F22: =VLOOKUP($D22,'Data Extract'!$E:$J,5,0) -> 165 | G22: =VLOOKUP($D22,'Data Extract'!$E:$J,6,0) -> 42
B23: Y56 | C23: LONDON COMMISSIONING REGION | D23: RAN | E23: ROYAL NATIONAL ORTHOPAEDIC HOSPITAL NHS TRUST | F23: =VLOOKUP($D23,'Data Extract'!$E:$J,5,0) -> 50 | G23: =VLOOKUP($D23,'Data Extract'!$E:$J,6,0) -> 12
B24: Y56 | C24: LONDON COMMISSIONING REGION | D24: RAP | E24: NORTH MIDDLESEX UNIVERSITY HOSPITAL NHS TRUST | F24: =VLOOKUP($D24,'Data Extract'!$E:$J,5,0) -> 58 | G24: =VLOOKUP($D24,'Data Extract'!$E:$J,6,0) -> 13
B25: Y56 | C25: LONDON COMMISSIONING REGION | D25: RAS | E25: THE HILLINGDON HOSPITALS NHS FOUNDATION TRUST | F25: =VLOOKUP($D25,'Data Extract'!$E:$J,5,0) -> 15 | G25: =VLOOKUP($D25,'Data Extract'!$E:$J,6,0) -> 0
B26: Y56 | C26: LONDON COMMISSIONING REGION | D26: RAX | E26: KINGSTON HOSPITAL NHS FOUNDATION TRUST | F26: =VLOOKUP($D26,'Data Extract'!$E:$J,5,0) -> 36 | G26: =VLOOKUP($D26,'Data Extract'!$E:$J,6,0) -> 2
B27: Y56 | C27: LONDON COMMISSIONING REGION | D27: RF4 | E27: BARKING, HAVERING AND REDBRIDGE UNIVERSITY HOSPITALS NHS TRUST | F27: =VLOOKUP($D27,'Data Extract'!$E:$J,5,0) -> 221 | G27: =VLOOKUP($D27,'Data Extract'!$E:$J,6,0) -> 25
B28: Y56 | C28: LONDON COMMISSIONING REGION | D28: RJ2 | E28: LEWISHAM AND GREENWICH NHS TRUST | F28: =VLOOKUP($D28,'Data Extract'!$E:$J,5,0) -> 65 | G28: =VLOOKUP($D28,'Data Extract'!$E:$J,6,0) -> 24
B29: Y56 | C29: LONDON COMMISSIONING REGION | D29: RJ6 | E29: CROYDON HEALTH SERVICES NHS TRUST | F29: =VLOOKUP($D29,'Data Extract'!$E:$J,5,0) -> 174 | G29: =VLOOKUP($D29,'Data Extract'!$E:$J,6,0) -> 41
B30: Y56 | C30: LONDON COMMISSIONING REGION | D30: RJ7 | E30: ST GEORGE'S UNIVERSITY HOSPITALS NHS FOUNDATION TRUST | F30: =VLOOKUP($D30,'Data Extract'!$E:$J,5,0) -> 51 | G30: =VLOOKUP($D30,'Data Extract'!$E:$J,6,0) -> 7
B31: Y56 | C31: LONDON COMMISSIONING REGION | D31: RKE | E31: WHITTINGTON HEALTH NHS TRUST | F31: =VLOOKUP($D31,'Data Extract'!$E:$J,5,0) -> 19 | G31: =VLOOKUP($D31,'Data Extract'!$E:$J,6,0) -> 5
B32: Y56 | C32: LONDON COMMISSIONING REGION | D32: RP4 | E32: GREAT ORMOND STREET HOSPITAL FOR CHILDREN NHS FOUNDATION TRUST | F32: =VLOOKUP($D32,'Data Extract'!$E:$J,5,0) -> 141 | G32: =VLOOKUP($D32,'Data Extract'!$E:$J,6,0) -> 30
B33: Y56 | C33: LONDON COMMISSIONING REGION | D33: RP6 | E33: MOORFIELDS EYE HOSPITAL NHS FOUNDATION TRUST | F33: =VLOOKUP($D33,'Data Extract'!$E:$J,5,0) -> 82 | G33: =VLOOKUP($D33,'Data Extract'!$E:$J,6,0) -> 6
B34: Y56 | C34: LONDON COMMISSIONING REGION | D34: RPY | E34: THE ROYAL MARSDEN NHS FOUNDATION TRUST | F34: =VLOOKUP($D34,'Data Extract'!$E:$J,5,0) -> 11 | G34: =VLOOKUP($D34,'Data Extract'!$E:$J,6,0) -> 0
B35: Y56 | C35: LONDON COMMISSIONING REGION | D35: RQM | E35: CHELSEA AND WESTMINSTER HOSPITAL NHS FOUNDATION TRUST | F35: =VLOOKUP($D35,'Data Extract'!$E:$J,5,0) -> 114 | G35: =VLOOKUP($D35,'Data Extract'!$E:$J,6,0) -> 23
B36: Y56 | C36: LONDON COMMISSIONING REGION | D36: RQX | E36: HOMERTON HEALTHCARE NHS FOUNDATION TRUST | F36: =VLOOKUP($D36,'Data Extract'!$E:$J,5,0) -> 74 | G36: =VLOOKUP($D36,'Data Extract'!$E:$J,6,0) -> 0
B37: Y56 | C37: LONDON COMMISSIONING REGION | D37: RRV | E37: UNIVERSITY COLLEGE LONDON HOSPITALS NHS FOUNDATION TRUST | F37: =VLOOKUP($D37,'Data Extract'!$E:$J,5,0) -> 343 | G37: =VLOOKUP($D37,'Data Extract'!$E:$J,6,0) -> 164
B38: Y56 | C38: LONDON COMMISSIONING REGION | D38: RVR | E38: EPSOM AND ST HELIER UNIVERSITY HOSPITALS NHS TRUST | F38: =VLOOKUP($D38,'Data Extract'!$E:$J,5,0) -> 296 | G38: =VLOOKUP($D38,'Data Extract'!$E:$J,6,0) -> 7
B39: Y56 | C39: LONDON COMMISSIONING REGION | D39: RYJ | E39: IMPERIAL COLLEGE HEALTHCARE NHS TRUST | F39: =VLOOKUP($D39,'Data Extract'!$E:$J,5,0) -> 248 | G39: =VLOOKUP($D39,'Data Extract'!$E:$J,6,0) -> 62
B40: Y58 | C40: SOUTH WEST COMMISSIONING REGION | D40: R0D | E40: UNIVERSITY HOSPITALS DORSET NHS FOUNDATION TRUST | F40: =VLOOKUP($D40,'Data Extract'!$E:$J,5,0) -> 180 | G40: =VLOOKUP($D40,'Data Extract'!$E:$J,6,0) -> 61
B41: Y58 | C41: SOUTH WEST COMMISSIONING REGION | D41: RA7 | E41: UNIVERSITY HOSPITALS BRISTOL AND WESTON NHS FOUNDATION TRUST | F41: =VLOOKUP($D41,'Data Extract'!$E:$J,5,0) -> 286 | G41: =VLOOKUP($D41,'Data Extract'!$E:$J,6,0) -> 201
B42: Y58 | C42: SOUTH WEST COMMISSIONING REGION | D42: RA9 | E42: TORBAY AND SOUTH DEVON NHS FOUNDATION TRUST | F42: =VLOOKUP($D42,'Data Extract'!$E:$J,5,0) -> 136 | G42: =VLOOKUP($D42,'Data Extract'!$E:$J,6,0) -> 39
B43: Y58 | C43: SOUTH WEST COMMISSIONING REGION | D43: RBD | E43: DORSET COUNTY HOSPITAL NHS FOUNDATION TRUST | F43: =VLOOKUP($D43,'Data Extract'!$E:$J,5,0) -> 148 | G43: =VLOOKUP($D43,'Data Extract'!$E:$J,6,0) -> 36
B44: Y58 | C44: SOUTH WEST COMMISSIONING REGION | D44: RD1 | E44: ROYAL UNITED HOSPITALS BATH NHS FOUNDATION TRUST | F44: =VLOOKUP($D44,'Data Extract'!$E:$J,5,0) -> 87 | G44: =VLOOKUP($D44,'Data Extract'!$E:$J,6,0) -> 1
B45: Y58 | C45: SOUTH WEST COMMISSIONING REGION | D45: RDY | E45: DORSET HEALTHCARE UNIVERSITY NHS FOUNDATION TRUST | F45: =VLOOKUP($D45,'Data Extract'!$E:$J,5,0) -> 0 | G45: =VLOOKUP($D45,'Data Extract'!$E:$J,6,0) -> 0
B46: Y58 | C46: SOUTH WEST COMMISSIONING REGION | D46: REF | E46: ROYAL CORNWALL HOSPITALS NHS TRUST | F46: =VLOOKUP($D46,'Data Extract'!$E:$J,5,0) -> 205 | G46: =VLOOKUP($D46,'Data Extract'!$E:$J,6,0) -> 67
B47: Y58 | C47: SOUTH WEST COMMISSIONING REGION | D47: RH5 | E47: SOMERSET NHS FOUNDATION TRUST | F47: =VLOOKUP($D47,'Data Extract'!$E:$J,5,0) -> 209 | G47: =VLOOKUP($D47,'Data Extract'!$E:$J,6,0) -> 58
B48: Y58 | C48: SOUTH WEST COMMISSIONING REGION | D48: RH8 | E48: ROYAL DEVON UNIVERSITY HEALTHCARE NHS FOUNDATION TRUST | F48: =VLOOKUP($D48,'Data Extract'!$E:$J,5,0) -> 352 | G48: =VLOOKUP($D48,'Data Extract'!$E:$J,6,0) -> 41
B49: Y58 | C49: SOUTH WEST COMMISSIONING REGION | D49: RK9 | E49: UNIVERSITY HOSPITALS PLYMOUTH NHS TRUST | F49: =VLOOKUP($D49,'Data Extract'!$E:$J,5,0) -> 422 | G49: =VLOOKUP($D49,'Data Extract'!$E:$J,6,0) -> 97
B50: Y58 | C50: SOUTH WEST COMMISSIONING REGION | D50: RN3 | E50: GREAT WESTERN HOSPITALS NHS FOUNDATION TRUST | F50: =VLOOKUP($D50,'Data Extract'!$E:$J,5,0) -> 80 | G50: =VLOOKUP($D50,'Data Extract'!$E:$J,6,0) -> 5
B51: Y58 | C51: SOUTH WEST COMMISSIONING REGION | D51: RNZ | E51: SALISBURY NHS FOUNDATION TRUST | F51: =VLOOKUP($D51,'Data Extract'!$E:$J,5,0) -> 65 | G51: =VLOOKUP($D51,'Data Extract'!$E:$J,6,0) -> 7
B52: Y58 | C52: SOUTH WEST COMMISSIONING REGION | D52: RTE | E52: GLOUCESTERSHIRE HOSPITALS NHS FOUNDATION TRUST | F52: =VLOOKUP($D52,'Data Extract'!$E:$J,5,0) -> 208 | G52: =VLOOKUP($D52,'Data Extract'!$E:$J,6,0) -> 67
B53: Y58 | C53: SOUTH WEST COMMISSIONING REGION | D53: RTQ | E53: GLOUCESTERSHIRE HEALTH AND CARE NHS FOUNDATION TRUST | F53: =VLOOKUP($D53,'Data Extract'!$E:$J,5,0) -> 0 | G53: =VLOOKUP($D53,'Data Extract'!$E:$J,6,0) -> 0
B54: Y58 | C54: SOUTH WEST COMMISSIONING REGION | D54: RVJ | E54: NORTH BRISTOL NHS TRUST | F54: =VLOOKUP($D54,'Data Extract'!$E:$J,5,0) -> 125 | G54: =VLOOKUP($D54,'Data Extract'!$E:$J,6,0) -> 18
B55: Y59 | C55: SOUTH EAST COMMISSIONING REGION | D55: ADP02 | E55: KIMS HOSPITAL (NEWNHAM COURT) | F55: =VLOOKUP($D55,'Data Extract'!$E:$J,5,0) -> 6 | G55: =VLOOKUP($D55,'Data Extract'!$E:$J,6,0) -> 2
B56: Y59 | C56: SOUTH EAST COMMISSIONING REGION | D56: NTP16 | E56: PRACTICE PLUS GROUP SURGICAL CENTRE - GILLINGHAM | F56: =VLOOKUP($D56,'Data Extract'!$E:$J,5,0) -> 0 | G56: =VLOOKUP($D56,'Data Extract'!$E:$J,6,0) -> 0
B57: Y59 | C57: SOUTH EAST COMMISSIONING REGION | D57: R1F | E57: ISLE OF WIGHT NHS TRUST | F57: =VLOOKUP($D57,'Data Extract'!$E:$J,5,0) -> 50 | G57: =VLOOKUP($D57,'Data Extract'!$E:$J,6,0) -> 7
B58: Y59 | C58: SOUTH EAST COMMISSIONING REGION | D58: RA2 | E58: ROYAL SURREY COUNTY HOSPITAL NHS FOUNDATION TRUST | F58: =VLOOKUP($D58,'Data Extract'!$E:$J,5,0) -> 78 | G58: =VLOOKUP($D58,'Data Extract'!$E:$J,6,0) -> 11
B59: Y59 | C59: SOUTH EAST COMMISSIONING REGION | D59: RHM | E59: UNIVERSITY HOSPITAL SOUTHAMPTON NHS FOUNDATION TRUST | F59: =VLOOKUP($D59,'Data Extract'!$E:$J,5,0) -> 355 | G59: =VLOOKUP($D59,'Data Extract'!$E:$J,6,0) -> 79
B60: Y59 | C60: SOUTH EAST COMMISSIONING REGION | D60: RHU | E60: PORTSMOUTH HOSPITALS UNIVERSITY NATIONAL HEALTH SERVICE TRUST | F60: =VLOOKUP($D60,'Data Extract'!$E:$J,5,0) -> 115 | G60: =VLOOKUP($D60,'Data Extract'!$E:$J,6,0) -> 26
B61: Y59 | C61: SOUTH EAST COMMISSIONING REGION | D61: RHW | E61: ROYAL BERKSHIRE NHS FOUNDATION TRUST | F61: =VLOOKUP($D61,'Data Extract'!$E:$J,5,0) -> 127 | G61: =VLOOKUP($D61,'Data Extract'!$E:$J,6,0) -> 0
B62: Y59 | C62: SOUTH EAST COMMISSIONING REGION | D62: RN5 | E62: HAMPSHIRE HOSPITALS NHS FOUNDATION TRUST | F62: =VLOOKUP($D62,'Data Extract'!$E:$J,5,0) -> 123 | G62: =VLOOKUP($D62,'Data Extract'!$E:$J,6,0) -> 32
B63: Y59 | C63: SOUTH EAST COMMISSIONING REGION | D63: RN7 | E63: DARTFORD AND GRAVESHAM NHS TRUST | F63: =VLOOKUP($D63,'Data Extract'!$E:$J,5,0) -> 149 | G63: =VLOOKUP($D63,'Data Extract'!$E:$J,6,0) -> 21
B64: Y59 | C64: SOUTH EAST COMMISSIONING REGION | D64: RPA | E64: MEDWAY NHS FOUNDATION TRUST | F64: =VLOOKUP($D64,'Data Extract'!$E:$J,5,0) -> 39 | G64: =VLOOKUP($D64,'Data Extract'!$E:$J,6,0) -> 23
B65: Y59 | C65: SOUTH EAST COMMISSIONING REGION | D65: RPC | E65: QUEEN VICTORIA HOSPITAL NHS FOUNDATION TRUST | F65: =VLOOKUP($D65,'Data Extract'!$E:$J,5,0) -> 18 | G65: =VLOOKUP($D65,'Data Extract'!$E:$J,6,0) -> 2
B66: Y59 | C66: SOUTH EAST COMMISSIONING REGION | D66: RTH | E66: OXFORD UNIVERSITY HOSPITALS NHS FOUNDATION TRUST | F66: =VLOOKUP($D66,'Data Extract'!$E:$J,5,0) -> 73 | G66: =VLOOKUP($D66,'Data Extract'!$E:$J,6,0) -> 9
B67: Y59 | C67: SOUTH EAST COMMISSIONING REGION | D67: RTK | E67: ASHFORD AND ST PETER'S HOSPITALS NHS FOUNDATION TRUST | F67: =VLOOKUP($D67,'Data Extract'!$E:$J,5,0) -> 14 | G67: =VLOOKUP($D67,'Data Extract'!$E:$J,6,0) -> 4
B68: Y59 | C68: SOUTH EAST COMMISSIONING REGION | D68: RTP | E68: SURREY AND SUSSEX HEALTHCARE NHS TRUST | F68: =VLOOKUP($D68,'Data Extract'!$E:$J,5,0) -> 498 | G68: =VLOOKUP($D68,'Data Extract'!$E:$J,6,0) -> 263
B69: Y59 | C69: SOUTH EAST COMMISSIONING REGION | D69: RVV | E69: EAST KENT HOSPITALS UNIVERSITY NHS FOUNDATION TRUST | F69: =VLOOKUP($D69,'Data Extract'!$E:$J,5,0) -> 147 | G69: =VLOOKUP($D69,'Data Extract'!$E:$J,6,0) -> 43
B70: Y59 | C70: SOUTH EAST COMMISSIONING REGION | D70: RW1 | E70: SOUTHERN HEALTH NHS FOUNDATION TRUST | F70: =VLOOKUP($D70,'Data Extract'!$E:$J,5,0) -> 0 | G70: =VLOOKUP($D70,'Data Extract'!$E:$J,6,0) -> 0
B71: Y59 | C71: SOUTH EAST COMMISSIONING REGION | D71: RWF | E71: MAIDSTONE AND TUNBRIDGE WELLS NHS TRUST | F71: =VLOOKUP($D71,'Data Extract'!$E:$J,5,0) -> 51 | G71: =VLOOKUP($D71,'Data Extract'!$E:$J,6,0) -> 7
B72: Y59 | C72: SOUTH EAST COMMISSIONING REGION | D72: RXC | E72: EAST SUSSEX HEALTHCARE NHS TRUST | F72: =VLOOKUP($D72,'Data Extract'!$E:$J,5,0) -> 76 | G72: =VLOOKUP($D72,'Data Extract'!$E:$J,6,0) -> 9
B73: Y59 | C73: SOUTH EAST COMMISSIONING REGION | D73: RXQ | E73: BUCKINGHAMSHIRE HEALTHCARE NHS TRUST | F73: =VLOOKUP($D73,'Data Extract'!$E:$J,5,0) -> 120 | G73: =VLOOKUP($D73,'Data Extract'!$E:$J,6,0) -> 8
B74: Y59 | C74: SOUTH EAST COMMISSIONING REGION | D74: RYR | E74: UNIVERSITY HOSPITALS SUSSEX NHS FOUNDATION TRUST | F74: =VLOOKUP($D74,'Data Extract'!$E:$J,5,0) -> 550 | G74: =VLOOKUP($D74,'Data Extract'!$E:$J,6,0) -> 203
B75: Y60 | C75: MIDLANDS COMMISSIONING REGION | D75: R1D | E75: SHROPSHIRE COMMUNITY HEALTH NHS TRUST | F75: =VLOOKUP($D75,'Data Extract'!$E:$J,5,0) -> 0 | G75: =VLOOKUP($D75,'Data Extract'!$E:$J,6,0) -> 0
B76: Y60 | C76: MIDLANDS COMMISSIONING REGION | D76: RBK | E76: WALSALL HEALTHCARE NHS TRUST | F76: =VLOOKUP($D76,'Data Extract'!$E:$J,5,0) -> 85 | G76: =VLOOKUP($D76,'Data Extract'!$E:$J,6,0) -> 6
B77: Y60 | C77: MIDLANDS COMMISSIONING REGION | D77: RFS | E77: CHESTERFIELD ROYAL HOSPITAL NHS FOUNDATION TRUST | F77: =VLOOKUP($D77,'Data Extract'!$E:$J,5,0) -> 118 | G77: =VLOOKUP($D77,'Data Extract'!$E:$J,6,0) -> 47
B78: Y60 | C78: MIDLANDS COMMISSIONING REGION | D78: RJC | E78: SOUTH WARWICKSHIRE UNIVERSITY NHS FOUNDATION TRUST | F78: =VLOOKUP($D78,'Data Extract'!$E:$J,5,0) -> 67 | G78: =VLOOKUP($D78,'Data Extract'!$E:$J,6,0) -> 14
B79: Y60 | C79: MIDLANDS COMMISSIONING REGION | D79: RJE | E79: UNIVERSITY HOSPITALS OF NORTH MIDLANDS NHS TRUST | F79: =VLOOKUP($D79,'Data Extract'!$E:$J,5,0) -> 398 | G79: =VLOOKUP($D79,'Data Extract'!$E:$J,6,0) -> 85
B80: Y60 | C80: MIDLANDS COMMISSIONING REGION | D80: RK5 | E80: SHERWOOD FOREST HOSPITALS NHS FOUNDATION TRUST | F80: =VLOOKUP($D80,'Data Extract'!$E:$J,5,0) -> 62 | G80: =VLOOKUP($D80,'Data Extract'!$E:$J,6,0) -> 16
B81: Y60 | C81: MIDLANDS COMMISSIONING REGION | D81: RKB | E81: UNIVERSITY HOSPITALS COVENTRY AND WARWICKSHIRE NHS TRUST | F81: =VLOOKUP($D81,'Data Extract'!$E:$J,5,0) -> 234 | G81: =VLOOKUP($D81,'Data Extract'!$E:$J,6,0) -> 71
B82: Y60 | C82: MIDLANDS COMMISSIONING REGION | D82: RL1 | E82: THE ROBERT JONES AND AGNES HUNT ORTHOPAEDIC HOSPITAL NHS FOUNDATION TRUST | F82: =VLOOKUP($D82,'Data Extract'!$E:$J,5,0) -> 44 | G82: =VLOOKUP($D82,'Data Extract'!$E:$J,6,0) -> 0
B83: Y60 | C83: MIDLANDS COMMISSIONING REGION | D83: RL4 | E83: THE ROYAL WOLVERHAMPTON NHS TRUST | F83: =VLOOKUP($D83,'Data Extract'!$E:$J,5,0) -> 32 | G83: =VLOOKUP($D83,'Data Extract'!$E:$J,6,0) -> 0
B84: Y60 | C84: MIDLANDS COMMISSIONING REGION | D84: RLQ | E84: WYE VALLEY NHS TRUST | F84: =VLOOKUP($D84,'Data Extract'!$E:$J,5,0) -> 75 | G84: =VLOOKUP($D84,'Data Extract'!$E:$J,6,0) -> 31
B85: Y60 | C85: MIDLANDS COMMISSIONING REGION | D85: RLT | E85: GEORGE ELIOT HOSPITAL NHS TRUST | F85: =VLOOKUP($D85,'Data Extract'!$E:$J,5,0) -> 68 | G85: =VLOOKUP($D85,'Data Extract'!$E:$J,6,0) -> 50
B86: Y60 | C86: MIDLANDS COMMISSIONING REGION | D86: RNA | E86: THE DUDLEY GROUP NHS FOUNDATION TRUST | F86: =VLOOKUP($D86,'Data Extract'!$E:$J,5,0) -> 175 | G86: =VLOOKUP($D86,'Data Extract'!$E:$J,6,0) -> 8
B87: Y60 | C87: MIDLANDS COMMISSIONING REGION | D87: RNQ | E87: KETTERING GENERAL HOSPITAL NHS FOUNDATION TRUST | F87: =VLOOKUP($D87,'Data Extract'!$E:$J,5,0) -> 109 | G87: =VLOOKUP($D87,'Data Extract'!$E:$J,6,0) -> 41
B88: Y60 | C88: MIDLANDS COMMISSIONING REGION | D88: RNS | E88: NORTHAMPTON GENERAL HOSPITAL NHS TRUST | F88: =VLOOKUP($D88,'Data Extract'!$E:$J,5,0) -> 85 | G88: =VLOOKUP($D88,'Data Extract'!$E:$J,6,0) -> 0
B89: Y60 | C89: MIDLANDS COMMISSIONING REGION | D89: RQ3 | E89: BIRMINGHAM WOMEN'S AND CHILDREN'S NHS FOUNDATION TRUST | F89: =VLOOKUP($D89,'Data Extract'!$E:$J,5,0) -> 76 | G89: =VLOOKUP($D89,'Data Extract'!$E:$J,6,0) -> 12
B90: Y60 | C90: MIDLANDS COMMISSIONING REGION | D90: RRJ | E90: THE ROYAL ORTHOPAEDIC HOSPITAL NHS FOUNDATION TRUST | F90: =VLOOKUP($D90,'Data Extract'!$E:$J,5,0) -> 62 | G90: =VLOOKUP($D90,'Data Extract'!$E:$J,6,0) -> 0
B91: Y60 | C91: MIDLANDS COMMISSIONING REGION | D91: RRK | E91: UNIVERSITY HOSPITALS BIRMINGHAM NHS FOUNDATION TRUST | F91: =VLOOKUP($D91,'Data Extract'!$E:$J,5,0) -> 957 | G91: =VLOOKUP($D91,'Data Extract'!$E:$J,6,0) -> 282
B92: Y60 | C92: MIDLANDS COMMISSIONING REGION | D92: RTG | E92: UNIVERSITY HOSPITALS OF DERBY AND BURTON NHS FOUNDATION TRUST | F92: =VLOOKUP($D92,'Data Extract'!$E:$J,5,0) -> 242 | G92: =VLOOKUP($D92,'Data Extract'!$E:$J,6,0) -> 118
B93: Y60 | C93: MIDLANDS COMMISSIONING REGION | D93: RWD | E93: UNITED LINCOLNSHIRE HOSPITALS NHS TRUST | F93: =VLOOKUP($D93,'Data Extract'!$E:$J,5,0) -> 313 | G93: =VLOOKUP($D93,'Data Extract'!$E:$J,6,0) -> 103
B94: Y60 | C94: MIDLANDS COMMISSIONING REGION | D94: RWE | E94: UNIVERSITY HOSPITALS OF LEICESTER NHS TRUST | F94: =VLOOKUP($D94,'Data Extract'!$E:$J,5,0) -> 574 | G94: =VLOOKUP($D94,'Data Extract'!$E:$J,6,0) -> 199
B95: Y60 | C95: MIDLANDS COMMISSIONING REGION | D95: RWP | E95: WORCESTERSHIRE ACUTE HOSPITALS NHS TRUST | F95: =VLOOKUP($D95,'Data Extract'!$E:$J,5,0) -> 124 | G95: =VLOOKUP($D95,'Data Extract'!$E:$J,6,0) -> 31
B96: Y60 | C96: MIDLANDS COMMISSIONING REGION | D96: RX1 | E96: NOTTINGHAM UNIVERSITY HOSPITALS NHS TRUST | F96: =VLOOKUP($D96,'Data Extract'!$E:$J,5,0) -> 302 | G96: =VLOOKUP($D96,'Data Extract'!$E:$J,6,0) -> 43
B97: Y60 | C97: MIDLANDS COMMISSIONING REGION | D97: RXK | E97: SANDWELL AND WEST BIRMINGHAM HOSPITALS NHS TRUST | F97: =VLOOKUP($D97,'Data Extract'!$E:$J,5,0) -> 125 | G97: =VLOOKUP($D97,'Data Extract'!$E:$J,6,0) -> 23
B98: Y60 | C98: MIDLANDS COMMISSIONING REGION | D98: RXW | E98: THE SHREWSBURY AND TELFORD HOSPITAL NHS TRUST | F98: =VLOOKUP($D98,'Data Extract'!$E:$J,5,0) -> 95 | G98: =VLOOKUP($D98,'Data Extract'!$E:$J,6,0) -> 73
B99: Y60 | C99: MIDLANDS COMMISSIONING REGION | D99: RYW | E99: BIRMINGHAM COMMUNITY HEALTHCARE NHS FOUNDATION TRUST | F99: =VLOOKUP($D99,'Data Extract'!$E:$J,5,0) -> 0 | G99: =VLOOKUP($D99,'Data Extract'!$E:$J,6,0) -> 0
B100: Y61 | C100: EAST OF ENGLAND COMMISSIONING REGION | D100: NT209 | E100: NUFFIELD HEALTH, CAMBRIDGE HOSPITAL | F100: =VLOOKUP($D100,'Data Extract'!$E:$J,5,0) -> 2 | G100: =VLOOKUP($D100,'Data Extract'!$E:$J,6,0) -> 0
B101: Y61 | C101: EAST OF ENGLAND COMMISSIONING REGION | D101: RAJ | E101: MID AND SOUTH ESSEX NHS FOUNDATION TRUST | F101: =VLOOKUP($D101,'Data Extract'!$E:$J,5,0) -> 409 | G101: =VLOOKUP($D101,'Data Extract'!$E:$J,6,0) -> 59
B102: Y61 | C102: EAST OF ENGLAND COMMISSIONING REGION | D102: RC9 | E102: BEDFORDSHIRE HOSPITALS NHS FOUNDATION TRUST | F102: =VLOOKUP($D102,'Data Extract'!$E:$J,5,0) -> 242 | G102: =VLOOKUP($D102,'Data Extract'!$E:$J,6,0) -> 10
B103: Y61 | C103: EAST OF ENGLAND COMMISSIONING REGION | D103: RCX | E103: THE QUEEN ELIZABETH HOSPITAL, KING'S LYNN, NHS FOUNDATION TRUST | F103: =VLOOKUP($D103,'Data Extract'!$E:$J,5,0) -> 127 | G103: =VLOOKUP($D103,'Data Extract'!$E:$J,6,0) -> 12
B104: Y61 | C104: EAST OF ENGLAND COMMISSIONING REGION | D104: RD8 | E104: MILTON KEYNES UNIVERSITY HOSPITAL NHS FOUNDATION TRUST | F104: =VLOOKUP($D104,'Data Extract'!$E:$J,5,0) -> 69 | G104: =VLOOKUP($D104,'Data Extract'!$E:$J,6,0) -> 19
B105: Y61 | C105: EAST OF ENGLAND COMMISSIONING REGION | D105: RDE | E105: EAST SUFFOLK AND NORTH ESSEX NHS FOUNDATION TRUST | F105: =VLOOKUP($D105,'Data Extract'!$E:$J,5,0) -> 235 | G105: =VLOOKUP($D105,'Data Extract'!$E:$J,6,0) -> 21
B106: Y61 | C106: EAST OF ENGLAND COMMISSIONING REGION | D106: RGM | E106: ROYAL PAPWORTH HOSPITAL NHS FOUNDATION TRUST | F106: =VLOOKUP($D106,'Data Extract'!$E:$J,5,0) -> 54 | G106: =VLOOKUP($D106,'Data Extract'!$E:$J,6,0) -> 21
B107: Y61 | C107: EAST OF ENGLAND COMMISSIONING REGION | D107: RGN | E107: NORTH WEST ANGLIA NHS FOUNDATION TRUST | F107: =VLOOKUP($D107,'Data Extract'!$E:$J,5,0) -> 183 | G107: =VLOOKUP($D107,'Data Extract'!$E:$J,6,0) -> 101
B108: Y61 | C108: EAST OF ENGLAND COMMISSIONING REGION | D108: RGP | E108: JAMES PAGET UNIVERSITY HOSPITALS NHS FOUNDATION TRUST | F108: =VLOOKUP($D108,'Data Extract'!$E:$J,5,0) -> 64 | G108: =VLOOKUP($D108,'Data Extract'!$E:$J,6,0) -> 14
B109: Y61 | C109: EAST OF ENGLAND COMMISSIONING REGION | D109: RGR | E109: WEST SUFFOLK NHS FOUNDATION TRUST | F109: =VLOOKUP($D109,'Data Extract'!$E:$J,5,0) -> 103 | G109: =VLOOKUP($D109,'Data Extract'!$E:$J,6,0) -> 27
B110: Y61 | C110: EAST OF ENGLAND COMMISSIONING REGION | D110: RGT | E110: CAMBRIDGE UNIVERSITY HOSPITALS NHS FOUNDATION TRUST | F110: =VLOOKUP($D110,'Data Extract'!$E:$J,5,0) -> 386 | G110: =VLOOKUP($D110,'Data Extract'!$E:$J,6,0) -> 106
B111: Y61 | C111: EAST OF ENGLAND COMMISSIONING REGION | D111: RM1 | E111: NORFOLK AND NORWICH UNIVERSITY HOSPITALS NHS FOUNDATION TRUST | F111: =VLOOKUP($D111,'Data Extract'!$E:$J,5,0) -> 295 | G111: =VLOOKUP($D111,'Data Extract'!$E:$J,6,0) -> 65
B112: Y61 | C112: EAST OF ENGLAND COMMISSIONING REGION | D112: RQW | E112: THE PRINCESS ALEXANDRA HOSPITAL NHS TRUST | F112: =VLOOKUP($D112,'Data Extract'!$E:$J,5,0) -> 34 | G112: =VLOOKUP($D112,'Data Extract'!$E:$J,6,0) -> 7
B113: Y61 | C113: EAST OF ENGLAND COMMISSIONING REGION | D113: RWG | E113: WEST HERTFORDSHIRE TEACHING HOSPITALS NHS TRUST | F113: =VLOOKUP($D113,'Data Extract'!$E:$J,5,0) -> 143 | G113: =VLOOKUP($D113,'Data Extract'!$E:$J,6,0) -> 45
B114: Y61 | C114: EAST OF ENGLAND COMMISSIONING REGION | D114: RWH | E114: EAST AND NORTH HERTFORDSHIRE NHS TRUST | F114: =VLOOKUP($D114,'Data Extract'!$E:$J,5,0) -> 20 | G114: =VLOOKUP($D114,'Data Extract'!$E:$J,6,0) -> 6
B115: Y62 | C115: NORTH WEST COMMISSIONING REGION | D115: NCR | E115: ISIGHT | F115: =VLOOKUP($D115,'Data Extract'!$E:$J,5,0) -> 9 | G115: =VLOOKUP($D115,'Data Extract'!$E:$J,6,0) -> 6
B116: Y62 | C116: NORTH WEST COMMISSIONING REGION | D116: NTPAE | E116: PRACTICE PLUS GROUP OPHTHALMOLOGY - NORTH WEST | F116: =VLOOKUP($D116,'Data Extract'!$E:$J,5,0) -> 0 | G116: =VLOOKUP($D116,'Data Extract'!$E:$J,6,0) -> 0
B117: Y62 | C117: NORTH WEST COMMISSIONING REGION | D117: R0A | E117: MANCHESTER UNIVERSITY NHS FOUNDATION TRUST | F117: =VLOOKUP($D117,'Data Extract'!$E:$J,5,0) -> 674 | G117: =VLOOKUP($D117,'Data Extract'!$E:$J,6,0) -> 149
B118: Y62 | C118: NORTH WEST COMMISSIONING REGION | D118: RBL | E118: WIRRAL UNIVERSITY TEACHING HOSPITAL NHS FOUNDATION TRUST | F118: =VLOOKUP($D118,'Data Extract'!$E:$J,5,0) -> 151 | G118: =VLOOKUP($D118,'Data Extract'!$E:$J,6,0) -> 57
B119: Y62 | C119: NORTH WEST COMMISSIONING REGION | D119: RBN | E119: MERSEY AND WEST LANCASHIRE TEACHING HOSPITALS NHS TRUST | F119: =VLOOKUP($D119,'Data Extract'!$E:$J,5,0) -> 206 | G119: =VLOOKUP($D119,'Data Extract'!$E:$J,6,0) -> 27
B120: Y62 | C120: NORTH WEST COMMISSIONING REGION | D120: RBQ | E120: LIVERPOOL HEART AND CHEST HOSPITAL NHS FOUNDATION TRUST | F120: =VLOOKUP($D120,'Data Extract'!$E:$J,5,0) -> 55 | G120: =VLOOKUP($D120,'Data Extract'!$E:$J,6,0) -> 11
B121: Y62 | C121: NORTH WEST COMMISSIONING REGION | D121: RBS | E121: ALDER HEY CHILDREN'S NHS FOUNDATION TRUST | F121: =VLOOKUP($D121,'Data Extract'!$E:$J,5,0) -> 61 | G121: =VLOOKUP($D121,'Data Extract'!$E:$J,6,0) -> 15
B122: Y62 | C122: NORTH WEST COMMISSIONING REGION | D122: RBT | E122: MID CHESHIRE HOSPITALS NHS FOUNDATION TRUST | F122: =VLOOKUP($D122,'Data Extract'!$E:$J,5,0) -> 76 | G122: =VLOOKUP($D122,'Data Extract'!$E:$J,6,0) -> 6
B123: Y62 | C123: NORTH WEST COMMISSIONING REGION | D123: RBV | E123: THE CHRISTIE NHS FOUNDATION TRUST | F123: =VLOOKUP($D123,'Data Extract'!$E:$J,5,0) -> 21 | G123: =VLOOKUP($D123,'Data Extract'!$E:$J,6,0) -> 0
B124: Y62 | C124: NORTH WEST COMMISSIONING REGION | D124: REM | E124: LIVERPOOL UNIVERSITY HOSPITALS NHS FOUNDATION TRUST | F124: =VLOOKUP($D124,'Data Extract'!$E:$J,5,0) -> 224 | G124: =VLOOKUP($D124,'Data Extract'!$E:$J,6,0) -> 30
B125: Y62 | C125: NORTH WEST COMMISSIONING REGION | D125: REP | E125: LIVERPOOL WOMEN'S NHS FOUNDATION TRUST | F125: =VLOOKUP($D125,'Data Extract'!$E:$J,5,0) -> 10 | G125: =VLOOKUP($D125,'Data Extract'!$E:$J,6,0) -> 2
B126: Y62 | C126: NORTH WEST COMMISSIONING REGION | D126: RET | E126: THE WALTON CENTRE NHS FOUNDATION TRUST | F126: =VLOOKUP($D126,'Data Extract'!$E:$J,5,0) -> 14 | G126: =VLOOKUP($D126,'Data Extract'!$E:$J,6,0) -> 0
B127: Y62 | C127: NORTH WEST COMMISSIONING REGION | D127: RJN | E127: EAST CHESHIRE NHS TRUST | F127: =VLOOKUP($D127,'Data Extract'!$E:$J,5,0) -> 17 | G127: =VLOOKUP($D127,'Data Extract'!$E:$J,6,0) -> 9
B128: Y62 | C128: NORTH WEST COMMISSIONING REGION | D128: RJR | E128: COUNTESS OF CHESTER HOSPITAL NHS FOUNDATION TRUST | F128: =VLOOKUP($D128,'Data Extract'!$E:$J,5,0) -> 88 | G128: =VLOOKUP($D128,'Data Extract'!$E:$J,6,0) -> 27
B129: Y62 | C129: NORTH WEST COMMISSIONING REGION | D129: RM3 | E129: NORTHERN CARE ALLIANCE NHS FOUNDATION TRUST | F129: =VLOOKUP($D129,'Data Extract'!$E:$J,5,0) -> 512 | G129: =VLOOKUP($D129,'Data Extract'!$E:$J,6,0) -> 127
B130: Y62 | C130: NORTH WEST COMMISSIONING REGION | D130: RMC | E130: BOLTON NHS FOUNDATION TRUST | F130: =VLOOKUP($D130,'Data Extract'!$E:$J,5,0) -> 109 | G130: =VLOOKUP($D130,'Data Extract'!$E:$J,6,0) -> 29
B131: Y62 | C131: NORTH WEST COMMISSIONING REGION | D131: RMP | E131: TAMESIDE AND GLOSSOP INTEGRATED CARE NHS FOUNDATION TRUST | F131: =VLOOKUP($D131,'Data Extract'!$E:$J,5,0) -> 19 | G131: =VLOOKUP($D131,'Data Extract'!$E:$J,6,0) -> 1
B132: Y62 | C132: NORTH WEST COMMISSIONING REGION | D132: RRF | E132: WRIGHTINGTON, WIGAN AND LEIGH NHS FOUNDATION TRUST | F132: =VLOOKUP($D132,'Data Extract'!$E:$J,5,0) -> 134 | G132: =VLOOKUP($D132,'Data Extract'!$E:$J,6,0) -> 54
B133: Y62 | C133: NORTH WEST COMMISSIONING REGION | D133: RTX | E133: UNIVERSITY HOSPITALS OF MORECAMBE BAY NHS FOUNDATION TRUST | F133: =VLOOKUP($D133,'Data Extract'!$E:$J,5,0) -> 70 | G133: =VLOOKUP($D133,'Data Extract'!$E:$J,6,0) -> 6
B134: Y62 | C134: NORTH WEST COMMISSIONING REGION | D134: RWJ | E134: STOCKPORT NHS FOUNDATION TRUST | F134: =VLOOKUP($D134,'Data Extract'!$E:$J,5,0) -> 97 | G134: =VLOOKUP($D134,'Data Extract'!$E:$J,6,0) -> 4
B135: Y62 | C135: NORTH WEST COMMISSIONING REGION | D135: RWW | E135: WARRINGTON AND HALTON TEACHING HOSPITALS NHS FOUNDATION TRUST | F135: =VLOOKUP($D135,'Data Extract'!$E:$J,5,0) -> 6 | G135: =VLOOKUP($D135,'Data Extract'!$E:$J,6,0) -> 2
B136: Y62 | C136: NORTH WEST COMMISSIONING REGION | D136: RXL | E136: BLACKPOOL TEACHING HOSPITALS NHS FOUNDATION TRUST | F136: =VLOOKUP($D136,'Data Extract'!$E:$J,5,0) -> 299 | G136: =VLOOKUP($D136,'Data Extract'!$E:$J,6,0) -> 57
B137: Y62 | C137: NORTH WEST COMMISSIONING REGION | D137: RXN | E137: LANCASHIRE TEACHING HOSPITALS NHS FOUNDATION TRUST | F137: =VLOOKUP($D137,'Data Extract'!$E:$J,5,0) -> 191 | G137: =VLOOKUP($D137,'Data Extract'!$E:$J,6,0) -> 56
B138: Y62 | C138: NORTH WEST COMMISSIONING REGION | D138: RXR | E138: EAST LANCASHIRE HOSPITALS NHS TRUST | F138: =VLOOKUP($D138,'Data Extract'!$E:$J,5,0) -> 216 | G138: =VLOOKUP($D138,'Data Extract'!$E:$J,6,0) -> 26
B139: Y63 | C139: NORTH EAST AND YORKSHIRE COMMISSIONING REGION | D139: R0B | E139: SOUTH TYNESIDE AND SUNDERLAND NHS FOUNDATION TRUST | F139: =VLOOKUP($D139,'Data Extract'!$E:$J,5,0) -> 139 | G139: =VLOOKUP($D139,'Data Extract'!$E:$J,6,0) -> 30
B140: Y63 | C140: NORTH EAST AND YORKSHIRE COMMISSIONING REGION | D140: RAE | E140: BRADFORD TEACHING HOSPITALS NHS FOUNDATION TRUST | F140: =VLOOKUP($D140,'Data Extract'!$E:$J,5,0) -> 112 | G140: =VLOOKUP($D140,'Data Extract'!$E:$J,6,0) -> 4
B141: Y63 | C141: NORTH EAST AND YORKSHIRE COMMISSIONING REGION | D141: RCB | E141: YORK AND SCARBOROUGH TEACHING HOSPITALS NHS FOUNDATION TRUST | F141: =VLOOKUP($D141,'Data Extract'!$E:$J,5,0) -> 179 | G141: =VLOOKUP($D141,'Data Extract'!$E:$J,6,0) -> 25
B142: Y63 | C142: NORTH EAST AND YORKSHIRE COMMISSIONING REGION | D142: RCD | E142: HARROGATE AND DISTRICT NHS FOUNDATION TRUST | F142: =VLOOKUP($D142,'Data Extract'!$E:$J,5,0) -> 57 | G142: =VLOOKUP($D142,'Data Extract'!$E:$J,6,0) -> 1
B143: Y63 | C143: NORTH EAST AND YORKSHIRE COMMISSIONING REGION | D143: RCF | E143: AIREDALE NHS FOUNDATION TRUST | F143: =VLOOKUP($D143,'Data Extract'!$E:$J,5,0) -> 64 | G143: =VLOOKUP($D143,'Data Extract'!$E:$J,6,0) -> 1
B144: Y63 | C144: NORTH EAST AND YORKSHIRE COMMISSIONING REGION | D144: RCU | E144: SHEFFIELD CHILDREN'S NHS FOUNDATION TRUST | F144: =VLOOKUP($D144,'Data Extract'!$E:$J,5,0) -> 39 | G144: =VLOOKUP($D144,'Data Extract'!$E:$J,6,0) -> 4
B145: Y63 | C145: NORTH EAST AND YORKSHIRE COMMISSIONING REGION | D145: RFF | E145: BARNSLEY HOSPITAL NHS FOUNDATION TRUST | F145: =VLOOKUP($D145,'Data Extract'!$E:$J,5,0) -> 83 | G145: =VLOOKUP($D145,'Data Extract'!$E:$J,6,0) -> 14
B146: Y63 | C146: NORTH EAST AND YORKSHIRE COMMISSIONING REGION | D146: RFR | E146: THE ROTHERHAM NHS FOUNDATION TRUST | F146: =VLOOKUP($D146,'Data Extract'!$E:$J,5,0) -> 119 | G146: =VLOOKUP($D146,'Data Extract'!$E:$J,6,0) -> 11
B147: Y63 | C147: NORTH EAST AND YORKSHIRE COMMISSIONING REGION | D147: RHQ | E147: SHEFFIELD TEACHING HOSPITALS NHS FOUNDATION TRUST | F147: =VLOOKUP($D147,'Data Extract'!$E:$J,5,0) -> 180 | G147: =VLOOKUP($D147,'Data Extract'!$E:$J,6,0) -> 7
B148: Y63 | C148: NORTH EAST AND YORKSHIRE COMMISSIONING REGION | D148: RJL | E148: NORTHERN LINCOLNSHIRE AND GOOLE NHS FOUNDATION TRUST | F148: =VLOOKUP($D148,'Data Extract'!$E:$J,5,0) -> 140 | G148: =VLOOKUP($D148,'Data Extract'!$E:$J,6,0) -> 40
B149: Y63 | C149: NORTH EAST AND YORKSHIRE COMMISSIONING REGION | D149: RNN | E149: NORTH CUMBRIA INTEGRATED CARE NHS FOUNDATION TRUST | F149: =VLOOKUP($D149,'Data Extract'!$E:$J,5,0) -> 156 | G149: =VLOOKUP($D149,'Data Extract'!$E:$J,6,0) -> 52
B150: Y63 | C150: NORTH EAST AND YORKSHIRE COMMISSIONING REGION | D150: RP5 | E150: DONCASTER AND BASSETLAW TEACHING HOSPITALS NHS FOUNDATION TRUST | F150: =VLOOKUP($D150,'Data Extract'!$E:$J,5,0) -> 147 | G150: =VLOOKUP($D150,'Data Extract'!$E:$J,6,0) -> 15
B151: Y63 | C151: NORTH EAST AND YORKSHIRE COMMISSIONING REGION | D151: RR7 | E151: GATESHEAD HEALTH NHS FOUNDATION TRUST | F151: =VLOOKUP($D151,'Data Extract'!$E:$J,5,0) -> 20 | G151: =VLOOKUP($D151,'Data Extract'!$E:$J,6,0) -> 1
B152: Y63 | C152: NORTH EAST AND YORKSHIRE COMMISSIONING REGION | D152: RR8 | E152: LEEDS TEACHING HOSPITALS NHS TRUST | F152: =VLOOKUP($D152,'Data Extract'!$E:$J,5,0) -> 160 | G152: =VLOOKUP($D152,'Data Extract'!$E:$J,6,0) -> 46
B153: Y63 | C153: NORTH EAST AND YORKSHIRE COMMISSIONING REGION | D153: RTD | E153: THE NEWCASTLE UPON TYNE HOSPITALS NHS FOUNDATION TRUST | F153: =VLOOKUP($D153,'Data Extract'!$E:$J,5,0) -> 152 | G153: =VLOOKUP($D153,'Data Extract'!$E:$J,6,0) -> 33
B154: Y63 | C154: NORTH EAST AND YORKSHIRE COMMISSIONING REGION | D154: RTF | E154: NORTHUMBRIA HEALTHCARE NHS FOUNDATION TRUST | F154: =VLOOKUP($D154,'Data Extract'!$E:$J,5,0) -> 30 | G154: =VLOOKUP($D154,'Data Extract'!$E:$J,6,0) -> 10
B155: Y63 | C155: NORTH EAST AND YORKSHIRE COMMISSIONING REGION | D155: RTR | E155: SOUTH TEES HOSPITALS NHS FOUNDATION TRUST | F155: =VLOOKUP($D155,'Data Extract'!$E:$J,5,0) -> 205 | G155: =VLOOKUP($D155,'Data Extract'!$E:$J,6,0) -> 56
B156: Y63 | C156: NORTH EAST AND YORKSHIRE COMMISSIONING REGION | D156: RVW | E156: NORTH TEES AND HARTLEPOOL NHS FOUNDATION TRUST | F156: =VLOOKUP($D156,'Data Extract'!$E:$J,5,0) -> 52 | G156: =VLOOKUP($D156,'Data Extract'!$E:$J,6,0) -> 16
B157: Y63 | C157: NORTH EAST AND YORKSHIRE COMMISSIONING REGION | D157: RWA | E157: HULL UNIVERSITY TEACHING HOSPITALS NHS TRUST | F157: =VLOOKUP($D157,'Data Extract'!$E:$J,5,0) -> 389 | G157: =VLOOKUP($D157,'Data Extract'!$E:$J,6,0) -> 93
B158: Y63 | C158: NORTH EAST AND YORKSHIRE COMMISSIONING REGION | D158: RWY | E158: CALDERDALE AND HUDDERSFIELD NHS FOUNDATION TRUST | F158: =VLOOKUP($D158,'Data Extract'!$E:$J,5,0) -> 64 | G158: =VLOOKUP($D158,'Data Extract'!$E:$J,6,0) -> 1
B159: Y63 | C159: NORTH EAST AND YORKSHIRE COMMISSIONING REGION | D159: RXF | E159: MID YORKSHIRE TEACHING NHS TRUST | F159: =VLOOKUP($D159,'Data Extract'!$E:$J,5,0) -> 115 | G159: =VLOOKUP($D159,'Data Extract'!$E:$J,6,0) -> 1
B160: Y63 | C160: NORTH EAST AND YORKSHIRE COMMISSIONING REGION | D160: RXP | E160: COUNTY DURHAM AND DARLINGTON NHS FOUNDATION TRUST | F160: =VLOOKUP($D160,'Data Extract'!$E:$J,5,0) -> 47 | G160: =VLOOKUP($D160,'Data Extract'!$E:$J,6,0) -> 4

Sheet Guidance & Definitions

Sheet Notes
B2: Title: | C2: Cancelled Operations (elective only)
B3: Summary: | C3: The number of last minute cancelled elective operations in the quarter for non-clinical reasons, NHS provider organisations in England
B5: Period: | C5: ='National & Regional'!C5 -> Quarter 3, 2023-24 (October to December 2023)
B6: Source: | C6: NHS England - QMCO data collection
B7: Basis: | C7: Provider
B8: Published: | C8: ='National & Regional'!C8 -> 8th February 2024
B9: Revised: | C9: ='National & Regional'!C9 -> -
B10: Status: | C10: ='National & Regional'!C10 -> Public
B11: Contact: | C11: england.nhsdata@nhs.net
B12: Guidance documents and latest statistical commentary relating to this collection can be found here:
B13: http://www.england.nhs.uk/statistics/cancelled-elective-operations/cancelled-ops-data/
B16: Notes
B18: RDU Frimley Health NHS Foundation Trust, RJZ King's College Hospital NHS Foundation Trust and RJ1 Guy's and St Thomas' NHS Foundation Trust did not submit data for Q3 2023-24.

Sheet Data Extract (hidden)
A1: QMCO - Cancelled Operations - Data Region and Self Trusts
A3: Year | B3: Period Name | C3: Parent Org Code | D3: Parent Name | E3: Org Code | F3: Org Name | G3: Total theatres | H3: Day Case Theatres | I3: Cancelled Operations | J3: Breaches Of Standard
A4: 2023-24 | B4: DECEMBER | C4: Y56 | D4: LONDON COMMISSIONING REGION | E4: RF4 | F4: BARKING, HAVERING AND REDBRIDGE UNIVERSITY HOSPITALS NHS TRUST | G4: 25 | H4: 5 | I4: 221 | J4: 25
A5: 2023-24 | B5: DECEMBER | C5: Y56 | D5: LONDON COMMISSIONING REGION | E5: R1H | F5: BARTS HEALTH NHS TRUST | G5: 56 | H5: 11 | I5: 328 | J5: 79
A6: 2023-24 | B6: DECEMBER | C6: Y56 | D6: LONDON COMMISSIONING REGION | E6: RQM | F6: CHELSEA AND WESTMINSTER HOSPITAL NHS FOUNDATION TRUST | G6: 24 | H6: 7 | I6: 114 | J6: 23
A7: 2023-24 | B7: DECEMBER | C7: Y56 | D7: LONDON COMMISSIONING REGION | E7: RJ6 | F7: CROYDON HEALTH SERVICES NHS TRUST | G7: 14 | H7: 0 | I7: 174 | J7: 41
A8: 2023-24 | B8: DECEMBER | C8: Y56 | D8: LONDON COMMISSIONING REGION | E8: RVR | F8: EPSOM AND ST HELIER UNIVERSITY HOSPITALS NHS TRUST | G8: 23 | H8: 5 | I8: 296 | J8: 7
A9: 2023-24 | B9: DECEMBER | C9: Y56 | D9: LONDON COMMISSIONING REGION | E9: RP4 | F9: GREAT ORMOND STREET HOSPITAL FOR CHILDREN NHS FOUNDATION TRUST | G9: 19 | H9: 0 | I9: 141 | J9: 30
A10: 2023-24 | B10: DECEMBER | C10: Y56 | D10: LONDON COMMISSIONING REGION | E10: RQX | F10: HOMERTON HEALTHCARE NHS FOUNDATION TRUST | G10: 8 | H10: 3 | I10: 74 | J10: 0
A11: 2023-24 | B11: DECEMBER | C11: Y56 | D11: LONDON COMMISSIONING REGION | E11: RYJ | F11: IMPERIAL COLLEGE HEALTHCARE NHS TRUST | G11: 42 | H11: 11 | I11: 248 | J11: 62
A12: 2023-24 | B12: DECEMBER | C12: Y56 | D12: LONDON COMMISSIONING REGION | E12: RAX | F12: KINGSTON HOSPITAL NHS FOUNDATION TRUST | G12: 14 | H12: 5 | I12: 36 | J12: 2
A13: 2023-24 | B13: DECEMBER | C13: Y56 | D13: LONDON COMMISSIONING REGION | E13: RJ2 | F13: LEWISHAM AND GREENWICH NHS TRUST | G13: 19 | H13: 1 | I13: 65 | J13: 24
A14: 2023-24 | B14: DECEMBER | C14: Y56 | D14: LONDON COMMISSIONING REGION | E14: R1K | F14: LONDON NORTH WEST UNIVERSITY HEALTHCARE NHS TRUST | G14: 25 | H14: 0 | I14: 110 | J14: 0
A15: 2023-24 | B15: DECEMBER | C15: Y56 | D15: LONDON COMMISSIONING REGION | E15: RP6 | F15: MOORFIELDS EYE HOSPITAL NHS FOUNDATION TRUST | G15: 19 | H15: 18 | I15: 82 | J15: 6
A16: 2023-24 | B16: DECEMBER | C16: Y56 | D16: LONDON COMMISSIONING REGION | E16: RAP | F16: NORTH MIDDLESEX UNIVERSITY HOSPITAL NHS TRUST | G16: 7 | H16: 0 | I16: 58 | J16: 13
A17: 2023-24 | B17: DECEMBER | C17: Y56 | D17: LONDON COMMISSIONING REGION | E17: RAL | F17: ROYAL FREE LONDON NHS FOUNDATION TRUST | G17: 37 | H17: 3 | I17: 165 | J17: 42
A18: 2023-24 | B18: DECEMBER | C18: Y56 | D18: LONDON COMMISSIONING REGION | E18: RAN | F18: ROYAL NATIONAL ORTHOPAEDIC HOSPITAL NHS TRUST | G18: 14 | H18: 0 | I18: 50 | J18: 12
A19: 2023-24 | B19: DECEMBER | C19: Y56 | D19: LONDON COMMISSIONING REGION | E19: RJ7 | F19: ST GEORGE'S UNIVERSITY HOSPITALS NHS FOUNDATION TRUST | G19: 33 | H19: 9 | I19: 51 | J19: 7
A20: 2023-24 | B20: DECEMBER | C20: Y56 | D20: LONDON COMMISSIONING REGION | E20: RAS | F20: THE HILLINGDON HOSPITALS NHS FOUNDATION TRUST | G20: 11 | H20: 0 | I20: 15 | J20: 0
A21: 2023-24 | B21: DECEMBER | C21: Y56 | D21: LONDON COMMISSIONING REGION | E21: RPY | F21: THE ROYAL MARSDEN NHS FOUNDATION TRUST | G21: 9 | H21: 0 | I21: 11 | J21: 0
A22: 2023-24 | B22: DECEMBER | C22: Y56 | D22: LONDON COMMISSIONING REGION | E22: RRV | F22: UNIVERSITY COLLEGE LONDON HOSPITALS NHS FOUNDATION TRUST | G22: 37 | H22: 0 | I22: 343 | J22: 164
A23: 2023-24 | B23: DECEMBER | C23: Y56 | D23: LONDON COMMISSIONING REGION | E23: RKE | F23: WHITTINGTON HEALTH NHS TRUST | G23: 10 | H23: 4 | I23: 19 | J23: 5
A24: 2023-24 | B24: DECEMBER | C24: Y58 | D24: SOUTH WEST COMMISSIONING REGION | E24: RBD | F24: DORSET COUNTY HOSPITAL NHS FOUNDATION TRUST | G24: 10 | H24: 3 | I24: 148 | J24: 36
A25: 2023-24 | B25: DECEMBER | C25: Y58 | D25: SOUTH WEST COMMISSIONING REGION | E25: RDY | F25: DORSET HEALTHCARE UNIVERSITY NHS FOUNDATION TRUST | G25: 3 | H25: 1 | I25: 0 | J25: 0
A26: 2023-24 | B26: DECEMBER | C26: Y58 | D26: SOUTH WEST COMMISSIONING REGION | E26: RTQ | F26: GLOUCESTERSHIRE HEALTH AND CARE NHS FOUNDATION TRUST | G26: 1 | H26: 1 | I26: 0 | J26: 0
A27: 2023-24 | B27: DECEMBER | C27: Y58 | D27: SOUTH WEST COMMISSIONING REGION | E27: RTE | F27: GLOUCESTERSHIRE HOSPITALS NHS FOUNDATION TRUST | G27: 29 | H27: 3 | I27: 208 | J27: 67
A28: 2023-24 | B28: DECEMBER | C28: Y58 | D28: SOUTH WEST COMMISSIONING REGION | E28: RN3 | F28: GREAT WESTERN HOSPITALS NHS FOUNDATION TRUST | G28: 15 | H28: 0 | I28: 80 | J28: 5
A29: 2023-24 | B29: DECEMBER | C29: Y58 | D29: SOUTH WEST COMMISSIONING REGION | E29: RVJ | F29: NORTH BRISTOL NHS TRUST | G29: 32 | H29: 0 | I29: 125 | J29: 18
A30: 2023-24 | B30: DECEMBER | C30: Y58 | D30: SOUTH WEST COMMISSIONING REGION | E30: REF | F30: ROYAL CORNWALL HOSPITALS NHS TRUST | G30: 22 | H30: 3 | I30: 205 | J30: 67
A31: 2023-24 | B31: DECEMBER | C31: Y58 | D31: SOUTH WEST COMMISSIONING REGION | E31: RH8 | F31: ROYAL DEVON UNIVERSITY HEALTHCARE NHS FOUNDATION TRUST | G31: 37 | H31: 11 | I31: 352 | J31: 41
A32: 2023-24 | B32: DECEMBER | C32: Y58 | D32: SOUTH WEST COMMISSIONING REGION | E32: RD1 | F32: ROYAL UNITED HOSPITALS BATH NHS FOUNDATION TRUST | G32: 17 | H32: 5 | I32: 87 | J32: 1
A33: 2023-24 | B33: DECEMBER | C33: Y58 | D33: SOUTH WEST COMMISSIONING REGION | E33: RNZ | F33: SALISBURY NHS FOUNDATION TRUST | G33: 15 | H33: 6 | I33: 65 | J33: 7
A34: 2023-24 | B34: DECEMBER | C34: Y58 | D34: SOUTH WEST COMMISSIONING REGION | E34: RH5 | F34: SOMERSET NHS FOUNDATION TRUST | G34: 26 | H34: 9 | I34: 209 | J34: 58
A35: 2023-24 | B35: DECEMBER | C35: Y58 | D35: SOUTH WEST COMMISSIONING REGION | E35: RA9 | F35: TORBAY AND SOUTH DEVON NHS FOUNDATION TRUST | G35: 14 | H35: 4 | I35: 136 | J35: 39
A36: 2023-24 | B36: DECEMBER | C36: Y58 | D36: SOUTH WEST COMMISSIONING REGION | E36: RA7 | F36: UNIVERSITY HOSPITALS BRISTOL AND WESTON NHS FOUNDATION TRUST | G36: 40 | H36: 3 | I36: 286 | J36: 201
A37: 2023-24 | B37: DECEMBER | C37: Y58 | D37: SOUTH WEST COMMISSIONING REGION | E37: R0D | F37: UNIVERSITY HOSPITALS DORSET NHS FOUNDATION TRUST | G37: 31 | H37: 12 | I37: 180 | J37: 61
A38: 2023-24 | B38: DECEMBER | C38: Y58 | D38: SOUTH WEST COMMISSIONING REGION | E38: RK9 | F38: UNIVERSITY HOSPITALS PLYMOUTH NHS TRUST | G38: 31 | H38: 1 | I38: 422 | J38: 97
A39: 2023-24 | B39: DECEMBER | C39: Y59 | D39: SOUTH EAST COMMISSIONING REGION | E39: RTK | F39: ASHFORD AND ST PETER'S HOSPITALS NHS FOUNDATION TRUST | G39: 16 | H39: 3 | I39: 14 | J39: 4
A40: 2023-24 | B40: DECEMBER | C40: Y59 | D40: SOUTH EAST COMMISSIONING REGION | E40: RXQ | F40: BUCKINGHAMSHIRE HEALTHCARE NHS TRUST | G40: 13 | H40: 3 | I40: 120 | J40: 8
A41: 2023-24 | B41: DECEMBER | C41: Y59 | D41: SOUTH EAST COMMISSIONING REGION | E41: RN7 | F41: DARTFORD AND GRAVESHAM NHS TRUST | G41: 15 | H41: 0 | I41: 149 | J41: 21
A42: 2023-24 | B42: DECEMBER | C42: Y59 | D42: SOUTH EAST COMMISSIONING REGION | E42: RVV | F42: EAST KENT HOSPITALS UNIVERSITY NHS FOUNDATION TRUST | G42: 39 | H42: 11 | I42: 147 | J42: 43
A43: 2023-24 | B43: DECEMBER | C43: Y59 | D43: SOUTH EAST COMMISSIONING REGION | E43: RXC | F43: EAST SUSSEX HEALTHCARE NHS TRUST | G43: 22 | H43: 5 | I43: 76 | J43: 9
A44: 2023-24 | B44: DECEMBER | C44: Y59 | D44: SOUTH EAST COMMISSIONING REGION | E44: RN5 | F44: HAMPSHIRE HOSPITALS NHS FOUNDATION TRUST | G44: 38 | H44: 20 | I44: 123 | J44: 32
A45: 2023-24 | B45: DECEMBER | C45: Y59 | D45: SOUTH EAST COMMISSIONING REGION | E45: R1F | F45: ISLE OF WIGHT NHS TRUST | G45: 7 | H45: 3 | I45: 50 | J45: 7
A46: 2023-24 | B46: DECEMBER | C46: Y59 | D46: SOUTH EAST COMMISSIONING REGION | E46: ADP02 | F46: KIMS HOSPITAL (NEWNHAM COURT) | G46: 5 | H46: 0 | I46: 6 | J46: 2
A47: 2023-24 | B47: DECEMBER | C47: Y59 | D47: SOUTH EAST COMMISSIONING REGION | E47: RWF | F47: MAIDSTONE AND TUNBRIDGE WELLS NHS TRUST | G47: 19 | H47: 6 | I47: 51 | J47: 7
A48: 2023-24 | B48: DECEMBER | C48: Y59 | D48: SOUTH EAST COMMISSIONING REGION | E48: RPA | F48: MEDWAY NHS FOUNDATION TRUST | G48: 13 | H48: 4 | I48: 39 | J48: 23
A49: 2023-24 | B49: DECEMBER | C49: Y59 | D49: SOUTH EAST COMMISSIONING REGION | E49: RTH | F49: OXFORD UNIVERSITY HOSPITALS NHS FOUNDATION TRUST | G49: 46 | H49: 1 | I49: 73 | J49: 9
A50: 2023-24 | B50: DECEMBER | C50: Y59 | D50: SOUTH EAST COMMISSIONING REGION | E50: RHU | F50: PORTSMOUTH HOSPITALS UNIVERSITY NATIONAL HEALTH SERVICE TRUST | G50: 32 | H50: 3 | I50: 115 | J50: 26
A51: 2023-24 | B51: DECEMBER | C51: Y59 | D51: SOUTH EAST COMMISSIONING REGION | E51: NTP16 | F51: PRACTICE PLUS GROUP SURGICAL CENTRE - GILLINGHAM | G51: 3 | H51: 3 | I51: 0 | J51: 0
A52: 2023-24 | B52: DECEMBER | C52: Y59 | D52: SOUTH EAST COMMISSIONING REGION | E52: RPC | F52: QUEEN VICTORIA HOSPITAL NHS FOUNDATION TRUST | G52: 12 | H52: 2 | I52: 18 | J52: 2
A53: 2023-24 | B53: DECEMBER | C53: Y59 | D53: SOUTH EAST COMMISSIONING REGION | E53: RHW | F53: ROYAL BERKSHIRE NHS FOUNDATION TRUST | G53: 24 | H53: 4 | I53: 127 | J53: 0
A54: 2023-24 | B54: DECEMBER | C54: Y59 | D54: SOUTH EAST COMMISSIONING REGION | E54: RA2 | F54: ROYAL SURREY COUNTY HOSPITAL NHS FOUNDATION TRUST | G54: 14 | H54: 0 | I54: 78 | J54: 11
A55: 2023-24 | B55: DECEMBER | C55: Y59 | D55: SOUTH EAST COMMISSIONING REGION | E55: RW1 | F55: SOUTHERN HEALTH NHS FOUNDATION TRUST | G55: 2 | H55: 2 | I55: 0 | J55: 0
A56: 2023-24 | B56: DECEMBER | C56: Y59 | D56: SOUTH EAST COMMISSIONING REGION | E56: RTP | F56: SURREY AND SUSSEX HEALTHCARE NHS TRUST | G56: 15 | H56: 5 | I56: 498 | J56: 263
A57: 2023-24 | B57: DECEMBER | C57: Y59 | D57: SOUTH EAST COMMISSIONING REGION | E57: RHM | F57: UNIVERSITY HOSPITAL SOUTHAMPTON NHS FOUNDATION TRUST | G57: 41 | H57: 0 | I57: 355 | J57: 79
A58: 2023-24 | B58: DECEMBER | C58: Y59 | D58: SOUTH EAST COMMISSIONING REGION | E58: RYR | F58: UNIVERSITY HOSPITALS SUSSEX NHS FOUNDATION TRUST | G58: 59 | H58: 8 | I58: 550 | J58: 203
A59: 2023-24 | B59: DECEMBER | C59: Y60 | D59: MIDLANDS COMMISSIONING REGION | E59: RYW | F59: BIRMINGHAM COMMUNITY HEALTHCARE NHS FOUNDATION TRUST | G59: 1 | H59: 1 | I59: 0 | J59: 0
A60: 2023-24 | B60: DECEMBER | C60: Y60 | D60: MIDLANDS COMMISSIONING REGION | E60: RQ3 | F60: BIRMINGHAM WOMEN'S AND CHILDREN'S NHS FOUNDATION TRUST | G60: 20 | H60: 0 | I60: 76 | J60: 12
A61: 2023-24 | B61: DECEMBER | C61: Y60 | D61: MIDLANDS COMMISSIONING REGION | E61: RFS | F61: CHESTERFIELD ROYAL HOSPITAL NHS FOUNDATION TRUST | G61: 13 | H61: 1 | I61: 118 | J61: 47
A62: 2023-24 | B62: DECEMBER | C62: Y60 | D62: MIDLANDS COMMISSIONING REGION | E62: RLT | F62: GEORGE ELIOT HOSPITAL NHS TRUST | G62: 10 | H62: 4 | I62: 68 | J62: 50
A63: 2023-24 | B63: DECEMBER | C63: Y60 | D63: MIDLANDS COMMISSIONING REGION | E63: RNQ | F63: KETTERING GENERAL HOSPITAL NHS FOUNDATION TRUST | G63: 15 | H63: 0 | I63: 109 | J63: 41
A64: 2023-24 | B64: DECEMBER | C64: Y60 | D64: MIDLANDS COMMISSIONING REGION | E64: RNS | F64: NORTHAMPTON GENERAL HOSPITAL NHS TRUST | G64: 18 | H64: 3 | I64: 85 | J64: 0
A65: 2023-24 | B65: DECEMBER | C65: Y60 | D65: MIDLANDS COMMISSIONING REGION | E65: RX1 | F65: NOTTINGHAM UNIVERSITY HOSPITALS NHS TRUST | G65: 55 | H65: 4 | I65: 302 | J65: 43
A66: 2023-24 | B66: DECEMBER | C66: Y60 | D66: MIDLANDS COMMISSIONING REGION | E66: RXK | F66: SANDWELL AND WEST BIRMINGHAM HOSPITALS NHS TRUST | G66: 28 | H66: 10 | I66: 125 | J66: 23
A67: 2023-24 | B67: DECEMBER | C67: Y60 | D67: MIDLANDS COMMISSIONING REGION | E67: RK5 | F67: SHERWOOD FOREST HOSPITALS NHS FOUNDATION TRUST | G67: 17 | H67: 4 | I67: 62 | J67: 16
A68: 2023-24 | B68: DECEMBER | C68: Y60 | D68: MIDLANDS COMMISSIONING REGION | E68: R1D | F68: SHROPSHIRE COMMUNITY HEALTH NHS TRUST | G68: 1 | H68: 1 | I68: 0 | J68: 0
A69: 2023-24 | B69: DECEMBER | C69: Y60 | D69: MIDLANDS COMMISSIONING REGION | E69: RJC | F69: SOUTH WARWICKSHIRE UNIVERSITY NHS FOUNDATION TRUST | G69: 12 | H69: 2 | I69: 67 | J69: 14
A70: 2023-24 | B70: DECEMBER | C70: Y60 | D70: MIDLANDS COMMISSIONING REGION | E70: RNA | F70: THE DUDLEY GROUP NHS FOUNDATION TRUST | G70: 22 | H70: 10 | I70: 175 | J70: 8
A71: 2023-24 | B71: DECEMBER | C71: Y60 | D71: MIDLANDS COMMISSIONING REGION | E71: RL1 | F71: THE ROBERT JONES AND AGNES HUNT ORTHOPAEDIC HOSPITAL NHS FOUNDATION TRUST | G71: 11 | H71: 0 | I71: 44 | J71: 0
A72: 2023-24 | B72: DECEMBER | C72: Y60 | D72: MIDLANDS COMMISSIONING REGION | E72: RRJ | F72: THE ROYAL ORTHOPAEDIC HOSPITAL NHS FOUNDATION TRUST | G72: 14 | H72: 0 | I72: 62 | J72: 0
A73: 2023-24 | B73: DECEMBER | C73: Y60 | D73: MIDLANDS COMMISSIONING REGION | E73: RL4 | F73: THE ROYAL WOLVERHAMPTON NHS TRUST | G73: 30 | H73: 2 | I73: 32 | J73: 0
A74: 2023-24 | B74: DECEMBER | C74: Y60 | D74: MIDLANDS COMMISSIONING REGION | E74: RXW | F74: THE SHREWSBURY AND TELFORD HOSPITAL NHS TRUST | G74: 19 | H74: 6 | I74: 95 | J74: 73
A75: 2023-24 | B75: DECEMBER | C75: Y60 | D75: MIDLANDS COMMISSIONING REGION | E75: RWD | F75: UNITED LINCOLNSHIRE HOSPITALS NHS TRUST | G75: 30 | H75: 2 | I75: 313 | J75: 103
A76: 2023-24 | B76: DECEMBER | C76: Y60 | D76: MIDLANDS COMMISSIONING REGION | E76: RRK | F76: UNIVERSITY HOSPITALS BIRMINGHAM NHS FOUNDATION TRUST | G76: 69 | H76: 6 | I76: 957 | J76: 282
A77: 2023-24 | B77: DECEMBER | C77: Y60 | D77: MIDLANDS COMMISSIONING REGION | E77: RKB | F77: UNIVERSITY HOSPITALS COVENTRY AND WARWICKSHIRE NHS TRUST | G77: 31 | H77: 1 | I77: 234 | J77: 71
A78: 2023-24 | B78: DECEMBER | C78: Y60 | D78: MIDLANDS COMMISSIONING REGION | E78: RTG | F78: UNIVERSITY HOSPITALS OF DERBY AND BURTON NHS FOUNDATION TRUST | G78: 54 | H78: 20 | I78: 242 | J78: 118
A79: 2023-24 | B79: DECEMBER | C79: Y60 | D79: MIDLANDS COMMISSIONING REGION | E79: RWE | F79: UNIVERSITY HOSPITALS OF LEICESTER NHS TRUST | G79: 53 | H79: 8 | I79: 574 | J79: 199
A80: 2023-24 | B80: DECEMBER | C80: Y60 | D80: MIDLANDS COMMISSIONING REGION | E80: RJE | F80: UNIVERSITY HOSPITALS OF NORTH MIDLANDS NHS TRUST | G80: 50 | H80: 9 | I80: 398 | J80: 85
A81: 2023-24 | B81: DECEMBER | C81: Y60 | D81: MIDLANDS COMMISSIONING REGION | E81: RBK | F81: WALSALL HEALTHCARE NHS TRUST | G81: 14 | H81: 2 | I81: 85 | J81: 6
A82: 2023-24 | B82: DECEMBER | C82: Y60 | D82: MIDLANDS COMMISSIONING REGION | E82: RWP | F82: WORCESTERSHIRE ACUTE HOSPITALS NHS TRUST | G82: 23 | H82: 1 | I82: 124 | J82: 31
A83: 2023-24 | B83: DECEMBER | C83: Y60 | D83: MIDLANDS COMMISSIONING REGION | E83: RLQ | F83: WYE VALLEY NHS TRUST | G83: 13 | H83: 3 | I83: 75 | J83: 31
A84: 2023-24 | B84: DECEMBER | C84: Y61 | D84: EAST OF ENGLAND COMMISSIONING REGION | E84: RC9 | F84: BEDFORDSHIRE HOSPITALS NHS FOUNDATION TRUST | G84: 24 | H84: 4 | I84: 242 | J84: 10
A85: 2023-24 | B85: DECEMBER | C85: Y61 | D85: EAST OF ENGLAND COMMISSIONING REGION | E85: RGT | F85: CAMBRIDGE UNIVERSITY HOSPITALS NHS FOUNDATION TRUST | G85: 38 | H85: 5 | I85: 386 | J85: 106
A86: 2023-24 | B86: DECEMBER | C86: Y61 | D86: EAST OF ENGLAND COMMISSIONING REGION | E86: RWH | F86: EAST AND NORTH HERTFORDSHIRE NHS TRUST | G86: 19 | H86: 4 | I86: 20 | J86: 6
A87: 2023-24 | B87: DECEMBER | C87: Y61 | D87: EAST OF ENGLAND COMMISSIONING REGION | E87: RDE | F87: EAST SUFFOLK AND NORTH ESSEX NHS FOUNDATION TRUST | G87: 42 | H87: 13 | I87: 235 | J87: 21
A88: 2023-24 | B88: DECEMBER | C88: Y61 | D88: EAST OF ENGLAND COMMISSIONING REGION | E88: RGP | F88: JAMES PAGET UNIVERSITY HOSPITALS NHS FOUNDATION TRUST | G88: 13 | H88: 5 | I88: 64 | J88: 14
A89: 2023-24 | B89: DECEMBER | C89: Y61 | D89: EAST OF ENGLAND COMMISSIONING REGION | E89: RAJ | F89: MID AND SOUTH ESSEX NHS FOUNDATION TRUST | G89: 61 | H89: 14 | I89: 409 | J89: 59
A90: 2023-24 | B90: DECEMBER | C90: Y61 | D90: EAST OF ENGLAND COMMISSIONING REGION | E90: RD8 | F90: MILTON KEYNES UNIVERSITY HOSPITAL NHS FOUNDATION TRUST | G90: 12 | H90: 0 | I90: 69 | J90: 19
A91: 2023-24 | B91: DECEMBER | C91: Y61 | D91: EAST OF ENGLAND COMMISSIONING REGION | E91: RM1 | F91: NORFOLK AND NORWICH UNIVERSITY HOSPITALS NHS FOUNDATION TRUST | G91: 34 | H91: 6 | I91: 295 | J91: 65
A92: 2023-24 | B92: DECEMBER | C92: Y61 | D92: EAST OF ENGLAND COMMISSIONING REGION | E92: RGN | F92: NORTH WEST ANGLIA NHS FOUNDATION TRUST | G92: 35 | H92: 3 | I92: 183 | J92: 101
A93: 2023-24 | B93: DECEMBER | C93: Y61 | D93: EAST OF ENGLAND COMMISSIONING REGION | E93: NT209 | F93: NUFFIELD HEALTH, CAMBRIDGE HOSPITAL | G93: 5 | H93: 1 | I93: 2 | J93: 0
A94: 2023-24 | B94: DECEMBER | C94: Y61 | D94: EAST OF ENGLAND COMMISSIONING REGION | E94: RGM | F94: ROYAL PAPWORTH HOSPITAL NHS FOUNDATION TRUST | G94: 6 | H94: 0 | I94: 54 | J94: 21
A95: 2023-24 | B95: DECEMBER | C95: Y61 | D95: EAST OF ENGLAND COMMISSIONING REGION | E95: RQW | F95: THE PRINCESS ALEXANDRA HOSPITAL NHS TRUST | G95: 13 | H95: 4 | I95: 34 | J95: 7
A96: 2023-24 | B96: DECEMBER | C96: Y61 | D96: EAST OF ENGLAND COMMISSIONING REGION | E96: RCX | F96: THE QUEEN ELIZABETH HOSPITAL, KING'S LYNN, NHS FOUNDATION TRUST | G96: 14 | H96: 5 | I96: 127 | J96: 12
A97: 2023-24 | B97: DECEMBER | C97: Y61 | D97: EAST OF ENGLAND COMMISSIONING REGION | E97: RWG | F97: WEST HERTFORDSHIRE TEACHING HOSPITALS NHS TRUST | G97: 14 | H97: 0 | I97: 143 | J97: 45
A98: 2023-24 | B98: DECEMBER | C98: Y61 | D98: EAST OF ENGLAND COMMISSIONING REGION | E98: RGR | F98: WEST SUFFOLK NHS FOUNDATION TRUST | G98: 14 | H98: 5 | I98: 103 | J98: 27
A99: 2023-24 | B99: DECEMBER | C99: Y62 | D99: NORTH WEST COMMISSIONING REGION | E99: RBS | F99: ALDER HEY CHILDREN'S NHS FOUNDATION TRUST | G99: 16 | H99: 4 | I99: 61 | J99: 15
A100: 2023-24 | B100: DECEMBER | C100: Y62 | D100: NORTH WEST COMMISSIONING REGION | E100: RXL | F100: BLACKPOOL TEACHING HOSPITALS NHS FOUNDATION TRUST | G100: 20 | H100: 5 | I100: 299 | J100: 57
A101: 2023-24 | B101: DECEMBER | C101: Y62 | D101: NORTH WEST COMMISSIONING REGION | E101: RMC | F101: BOLTON NHS FOUNDATION TRUST | G101: 14 | H101: 5 | I101: 109 | J101: 29
A102: 2023-24 | B102: DECEMBER | C102: Y62 | D102: NORTH WEST COMMISSIONING REGION | E102: RJR | F102: COUNTESS OF CHESTER HOSPITAL NHS FOUNDATION TRUST | G102: 17 | H102: 6 | I102: 88 | J102: 27
A103: 2023-24 | B103: DECEMBER | C103: Y62 | D103: NORTH WEST COMMISSIONING REGION | E103: RJN | F103: EAST CHESHIRE NHS TRUST | G103: 6 | H103: 1 | I103: 17 | J103: 9
A104: 2023-24 | B104: DECEMBER | C104: Y62 | D104: NORTH WEST COMMISSIONING REGION | E104: RXR | F104: EAST LANCASHIRE HOSPITALS NHS TRUST | G104: 28 | H104: 0 | I104: 216 | J104: 26
A105: 2023-24 | B105: DECEMBER | C105: Y62 | D105: NORTH WEST COMMISSIONING REGION | E105: NCR | F105: ISIGHT | G105: 1 | H105: 1 | I105: 9 | J105: 6
A106: 2023-24 | B106: DECEMBER | C106: Y62 | D106: NORTH WEST COMMISSIONING REGION | E106: RXN | F106: LANCASHIRE TEACHING HOSPITALS NHS FOUNDATION TRUST | G106: 31 | H106: 4 | I106: 191 | J106: 56
A107: 2023-24 | B107: DECEMBER | C107: Y62 | D107: NORTH WEST COMMISSIONING REGION | E107: RBQ | F107: LIVERPOOL HEART AND CHEST HOSPITAL NHS FOUNDATION TRUST | G107: 9 | H107: 0 | I107: 55 | J107: 11
A108: 2023-24 | B108: DECEMBER | C108: Y62 | D108: NORTH WEST COMMISSIONING REGION | E108: REM | F108: LIVERPOOL UNIVERSITY HOSPITALS NHS FOUNDATION TRUST | G108: 37 | H108: 9 | I108: 224 | J108: 30
A109: 2023-24 | B109: DECEMBER | C109: Y62 | D109: NORTH WEST COMMISSIONING REGION | E109: REP | F109: LIVERPOOL WOMEN'S NHS FOUNDATION TRUST | G109: 5 | H109: 0 | I109: 10 | J109: 2
A110: 2023-24 | B110: DECEMBER | C110: Y62 | D110: NORTH WEST COMMISSIONING REGION | E110: R0A | F110: MANCHESTER UNIVERSITY NHS FOUNDATION TRUST | G110: 87 | H110: 8 | I110: 674 | J110: 149
A111: 2023-24 | B111: DECEMBER | C111: Y62 | D111: NORTH WEST COMMISSIONING REGION | E111: RBN | F111: MERSEY AND WEST LANCASHIRE TEACHING HOSPITALS NHS TRUST | G111: 37 | H111: 11 | I111: 206 | J111: 27
A112: 2023-24 | B112: DECEMBER | C112: Y62 | D112: NORTH WEST COMMISSIONING REGION | E112: RBT | F112: MID CHESHIRE HOSPITALS NHS FOUNDATION TRUST | G112: 12 | H112: 4 | I112: 76 | J112: 6
A113: 2023-24 | B113: DECEMBER | C113: Y62 | D113: NORTH WEST COMMISSIONING REGION | E113: RM3 | F113: NORTHERN CARE ALLIANCE NHS FOUNDATION TRUST | G113: 46 | H113: 6 | I113: 512 | J113: 127
A114: 2023-24 | B114: DECEMBER | C114: Y62 | D114: NORTH WEST COMMISSIONING REGION | E114: NTPAE | F114: PRACTICE PLUS GROUP OPHTHALMOLOGY - NORTH WEST | G114: 1 | H114: 1 | I114: 0 | J114: 0
A115: 2023-24 | B115: DECEMBER | C115: Y62 | D115: NORTH WEST COMMISSIONING REGION | E115: RWJ | F115: STOCKPORT NHS FOUNDATION TRUST | G115: 20 | H115: 3 | I115: 97 | J115: 4
A116: 2023-24 | B116: DECEMBER | C116: Y62 | D116: NORTH WEST COMMISSIONING REGION | E116: RMP | F116: TAMESIDE AND GLOSSOP INTEGRATED CARE NHS FOUNDATION TRUST | G116: 9 | H116: 0 | I116: 19 | J116: 1
A117: 2023-24 | B117: DECEMBER | C117: Y62 | D117: NORTH WEST COMMISSIONING REGION | E117: RBV | F117: THE CHRISTIE NHS FOUNDATION TRUST | G117: 7 | H117: 1 | I117: 21 | J117: 0
A118: 2023-24 | B118: DECEMBER | C118: Y62 | D118: NORTH WEST COMMISSIONING REGION | E118: RET | F118: THE WALTON CENTRE NHS FOUNDATION TRUST | G118: 7 | H118: 0 | I118: 14 | J118: 0
A119: 2023-24 | B119: DECEMBER | C119: Y62 | D119: NORTH WEST COMMISSIONING REGION | E119: RTX | F119: UNIVERSITY HOSPITALS OF MORECAMBE BAY NHS FOUNDATION TRUST | G119: 20 | H119: 0 | I119: 70 | J119: 6
A120: 2023-24 | B120: DECEMBER | C120: Y62 | D120: NORTH WEST COMMISSIONING REGION | E120: RWW | F120: WARRINGTON AND HALTON TEACHING HOSPITALS NHS FOUNDATION TRUST | G120: 12 | H120: 4 | I120: 6 | J120: 2
A121: 2023-24 | B121: DECEMBER | C121: Y62 | D121: NORTH WEST COMMISSIONING REGION | E121: RBL | F121: WIRRAL UNIVERSITY TEACHING HOSPITAL NHS FOUNDATION TRUST | G121: 21 | H121: 0 | I121: 151 | J121: 57
A122: 2023-24 | B122: DECEMBER | C122: Y62 | D122: NORTH WEST COMMISSIONING REGION | E122: RRF | F122: WRIGHTINGTON, WIGAN AND LEIGH NHS FOUNDATION TRUST | G122: 22 | H122: 4 | I122: 134 | J122: 54
A123: 2023-24 | B123: DECEMBER | C123: Y63 | D123: NORTH EAST AND YORKSHIRE COMMISSIONING REGION | E123: RCF | F123: AIREDALE NHS FOUNDATION TRUST | G123: 11 | H123: 0 | I123: 64 | J123: 1
A124: 2023-24 | B124: DECEMBER | C124: Y63 | D124: NORTH EAST AND YORKSHIRE COMMISSIONING REGION | E124: RFF | F124: BARNSLEY HOSPITAL NHS FOUNDATION TRUST | G124: 13 | H124: 4 | I124: 83 | J124: 14
A125: 2023-24 | B125: DECEMBER | C125: Y63 | D125: NORTH EAST AND YORKSHIRE COMMISSIONING REGION | E125: RAE | F125: BRADFORD TEACHING HOSPITALS NHS FOUNDATION TRUST | G125: 20 | H125: 1 | I125: 112 | J125: 4
A126: 2023-24 | B126: DECEMBER | C126: Y63 | D126: NORTH EAST AND YORKSHIRE COMMISSIONING REGION | E126: RWY | F126: CALDERDALE AND HUDDERSFIELD NHS FOUNDATION TRUST | G126: 17 | H126: 0 | I126: 64 | J126: 1
A127: 2023-24 | B127: DECEMBER | C127: Y63 | D127: NORTH EAST AND YORKSHIRE COMMISSIONING REGION | E127: RXP | F127: COUNTY DURHAM AND DARLINGTON NHS FOUNDATION TRUST | G127: 27 | H127: 2 | I127: 47 | J127: 4
A128: 2023-24 | B128: DECEMBER | C128: Y63 | D128: NORTH EAST AND YORKSHIRE COMMISSIONING REGION | E128: RP5 | F128: DONCASTER AND BASSETLAW TEACHING HOSPITALS NHS FOUNDATION TRUST | G128: 26 | H128: 5 | I128: 147 | J128: 15
A129: 2023-24 | B129: DECEMBER | C129: Y63 | D129: NORTH EAST AND YORKSHIRE COMMISSIONING REGION | E129: RR7 | F129: GATESHEAD HEALTH NHS FOUNDATION TRUST | G129: 12 | H129: 0 | I129: 20 | J129: 1
A130: 2023-24 | B130: DECEMBER | C130: Y63 | D130: NORTH EAST AND YORKSHIRE COMMISSIONING REGION | E130: RCD | F130: HARROGATE AND DISTRICT NHS FOUNDATION TRUST | G130: 8 | H130: 3 | I130: 57 | J130: 1
A131: 2023-24 | B131: DECEMBER | C131: Y63 | D131: NORTH EAST AND YORKSHIRE COMMISSIONING REGION | E131: RWA | F131: HULL UNIVERSITY TEACHING HOSPITALS NHS TRUST | G131: 39 | H131: 11 | I131: 389 | J131: 93
A132: 2023-24 | B132: DECEMBER | C132: Y63 | D132: NORTH EAST AND YORKSHIRE COMMISSIONING REGION | E132: RR8 | F132: LEEDS TEACHING HOSPITALS NHS TRUST | G132: 73 | H132: 10 | I132: 160 | J132: 46
A133: 2023-24 | B133: DECEMBER | C133: Y63 | D133: NORTH EAST AND YORKSHIRE COMMISSIONING REGION | E133: RXF | F133: MID YORKSHIRE TEACHING NHS TRUST | G133: 30 | H133: 4 | I133: 115 | J133: 1
A134: 2023-24 | B134: DECEMBER | C134: Y63 | D134: NORTH EAST AND YORKSHIRE COMMISSIONING REGION | E134: RNN | F134: NORTH CUMBRIA INTEGRATED CARE NHS FOUNDATION TRUST | G134: 19 | H134: 2 | I134: 156 | J134: 52
A135: 2023-24 | B135: DECEMBER | C135: Y63 | D135: NORTH EAST AND YORKSHIRE COMMISSIONING REGION | E135: RVW | F135: NORTH TEES AND HARTLEPOOL NHS FOUNDATION TRUST | G135: 17 | H135: 0 | I135: 52 | J135: 16
A136: 2023-24 | B136: DECEMBER | C136: Y63 | D136: NORTH EAST AND YORKSHIRE COMMISSIONING REGION | E136: RJL | F136: NORTHERN LINCOLNSHIRE AND GOOLE NHS FOUNDATION TRUST | G136: 15 | H136: 0 | I136: 140 | J136: 40
A137: 2023-24 | B137: DECEMBER | C137: Y63 | D137: NORTH EAST AND YORKSHIRE COMMISSIONING REGION | E137: RTF | F137: NORTHUMBRIA HEALTHCARE NHS FOUNDATION TRUST | G137: 27 | H137: 1 | I137: 30 | J137: 10
A138: 2023-24 | B138: DECEMBER | C138: Y63 | D138: NORTH EAST AND YORKSHIRE COMMISSIONING REGION | E138: RCU | F138: SHEFFIELD CHILDREN'S NHS FOUNDATION TRUST | G138: 9 | H138: 0 | I138: 39 | J138: 4
A139: 2023-24 | B139: DECEMBER | C139: Y63 | D139: NORTH EAST AND YORKSHIRE COMMISSIONING REGION | E139: RHQ | F139: SHEFFIELD TEACHING HOSPITALS NHS FOUNDATION TRUST | G139: 30 | H139: 8 | I139: 180 | J139: 7
A140: 2023-24 | B140: DECEMBER | C140: Y63 | D140: NORTH EAST AND YORKSHIRE COMMISSIONING REGION | E140: RTR | F140: SOUTH TEES HOSPITALS NHS FOUNDATION TRUST | G140: 36 | H140: 6 | I140: 205 | J140: 56
A141: 2023-24 | B141: DECEMBER | C141: Y63 | D141: NORTH EAST AND YORKSHIRE COMMISSIONING REGION | E141: R0B | F141: SOUTH TYNESIDE AND SUNDERLAND NHS FOUNDATION TRUST | G141: 31 | H141: 3 | I141: 139 | J141: 30
A142: 2023-24 | B142: DECEMBER | C142: Y63 | D142: NORTH EAST AND YORKSHIRE COMMISSIONING REGION | E142: RTD | F142: THE NEWCASTLE UPON TYNE HOSPITALS NHS FOUNDATION TRUST | G142: 67 | H142: 8 | I142: 152 | J142: 33
A143: 2023-24 | B143: DECEMBER | C143: Y63 | D143: NORTH EAST AND YORKSHIRE COMMISSIONING REGION | E143: RFR | F143: THE ROTHERHAM NHS FOUNDATION TRUST | G143: 11 | H143: 2 | I143: 119 | J143: 11
A144: 2023-24 | B144: DECEMBER | C144: Y63 | D144: NORTH EAST AND YORKSHIRE COMMISSIONING REGION | E144: RCB | F144: YORK AND SCARBOROUGH TEACHING HOSPITALS NHS FOUNDATION TRUST | G144: 36 | H144: 12 | I144: 179 | J144: 25

Sheet Region Mapping (hidden)
A1: Org Code | B1: Org Name | C1: Region Code | D1: Region Name
A2: TAJ | B2: BLACK COUNTRY PARTNERSHIP NHS FOUNDATION TRUST | C2: Y60 | D2: MIDLANDS COMMISSIONING REGION | F2: *manually removed unmerged organisations present in original file (As below) and updated. List taken From (INCOMPLETE)
A3: TAD | B3: BRADFORD DISTRICT CARE NHS FOUNDATION TRUST | C3: Y63 | D3: NORTH EAST AND YORKSHIRE COMMISSIONING REGION | F3: **Added details for Sunderland trust merger which took place in 04/19
A4: TAF | B4: CAMDEN AND ISLINGTON NHS FOUNDATION TRUST | C4: Y56 | D4: LONDON COMMISSIONING REGION | F4: 201819 mergers | I4: Merged code from Q1 onwards
A5: TAH | B5: SHEFFIELD HEALTH & SOCIAL CARE NHS FOUNDATION TRUST | C5: Y63 | D5: NORTH EAST AND YORKSHIRE COMMISSIONING REGION | F5: 1 | G5: RRE | H5: SOUTH STAFFORDSHIRE AND SHROPSHIRE HEALTHCARE NHS FOUNDATION TRUST | I5: RRE | J5: MIDLANDS PARTNERSHIP NHS FOUNDATION TRUST
A6: RTQ | B6: 2GETHER NHS FOUNDATION TRUST | C6: Y58 | D6: SOUTH WEST COMMISSIONING REGION | G6: R1E | H6: STAFFORDSHIRE AND STOKE ON TRENT PARTNERSHIP NHS TRUST | I6: RRE | J6: MIDLANDS PARTNERSHIP NHS FOUNDATION TRUST
A7: REM | B7: AINTREE UNIVERSITY HOSPITAL NHS FOUNDATION TRUST | C7: Y62 | D7: NORTH WEST COMMISSIONING REGION | F7: 2 | G7: RRK | H7: UNIVERSITY HOSPITALS BIRMINGHAM NHS FOUNDATION TRUST | I7: RRK | J7: UNIVERSITY HOSPITALS BIRMINGHAM NHS FOUNDATION TRUST
A8: RCF | B8: AIREDALE NHS FOUNDATION TRUST | C8: Y63 | D8: NORTH EAST AND YORKSHIRE COMMISSIONING REGION | G8: RR1 | H8: HEART OF ENGLAND NHS FOUNDATION TRUST | I8: RRK | J8: UNIVERSITY HOSPITALS BIRMINGHAM NHS FOUNDATION TRUST
A9: RBS | B9: ALDER HEY CHILDREN'S NHS FOUNDATION TRUST | C9: Y62 | D9: NORTH WEST COMMISSIONING REGION | F9: 3 | G9: RDE | H9: COLCHESTER HOSPITAL UNIVERSITY NHS FOUNDATION TRUST | I9: RDE | J9: EAST SUFFOLK AND NORTH ESSEX NHS FOUNDATION TRUST
A10: RTK | B10: ASHFORD AND ST PETER'S HOSPITALS NHS FOUNDATION TRUST | C10: Y59 | D10: SOUTH EAST COMMISSIONING REGION | G10: RGQ | H10: IPSWICH HOSPITAL NHS TRUST | I10: RDE | J10: EAST SUFFOLK AND NORTH ESSEX NHS FOUNDATION TRUST
A11: RVN | B11: AVON AND WILTSHIRE MENTAL HEALTH PARTNERSHIP NHS TRUST | C11: Y58 | D11: SOUTH WEST COMMISSIONING REGION | F11: 4 | G11: RJF | H11: BURTON HOSPITALS NHS FOUNDATION TRUST | I11: RTG | J11: UNIVERSITY HOSPITALS OF DERBY AND BURTON NHS FOUNDATION TRUST
A12: RF4 | B12: BARKING, HAVERING AND REDBRIDGE UNIVERSITY HOSPITALS NHS TRUST | C12: Y56 | D12: LONDON COMMISSIONING REGION | G12: RTG | H12: DERBY TEACHING HOSPITALS NHS FOUNDATION TRUST | I12: RTG | J12: UNIVERSITY HOSPITALS OF DERBY AND BURTON NHS FOUNDATION TRUST
A13: RRP | B13: BARNET, ENFIELD AND HARINGEY MENTAL HEALTH NHS TRUST | C13: Y56 | D13: LONDON COMMISSIONING REGION | F13: 5 | G13: RLN | H13: CITY HOSPITALS SUNDERLAND NHS FOUNDATION TRUST | I13: R0B | J13: South Tyneside and Sunderland NHS Foundation Trust.
A14: RFF | B14: BARNSLEY HOSPITAL NHS FOUNDATION TRUST | C14: Y63 | D14: NORTH EAST AND YORKSHIRE COMMISSIONING REGION | G14: RE9 | H14: SOUTH TYNESIDE NHS FOUNDATION TRUST | I14: R0B | J14: South Tyneside and Sunderland NHS Foundation Trust.
A15: R1H | B15: BARTS HEALTH NHS TRUST | C15: Y56 | D15: LONDON COMMISSIONING REGION
A16: RDD | B16: BASILDON AND THURROCK UNIVERSITY HOSPITALS NHS FOUNDATION TRUST | C16: Y61 | D16: EAST OF ENGLAND COMMISSIONING REGION
A17: RC1 | B17: BEDFORD HOSPITAL NHS TRUST | C17: Y61 | D17: EAST OF ENGLAND COMMISSIONING REGION
A18: RWX | B18: BERKSHIRE HEALTHCARE NHS FOUNDATION TRUST | C18: Y59 | D18: SOUTH EAST COMMISSIONING REGION
A19: RXT | B19: BIRMINGHAM AND SOLIHULL MENTAL HEALTH NHS FOUNDATION TRUST | C19: Y60 | D19: MIDLANDS COMMISSIONING REGION
A20: RYW | B20: BIRMINGHAM COMMUNITY HEALTHCARE NHS FOUNDATION TRUST | C20: Y60 | D20: MIDLANDS COMMISSIONING REGION
A21: RQ3 | B21: BIRMINGHAM WOMEN'S AND CHILDREN'S NHS FOUNDATION TRUST | C21: Y60 | D21: MIDLANDS COMMISSIONING REGION
A22: RXL | B22: BLACKPOOL TEACHING HOSPITALS NHS FOUNDATION TRUST | C22: Y62 | D22: NORTH WEST COMMISSIONING REGION
A23: RMC | B23: BOLTON NHS FOUNDATION TRUST | C23: Y62 | D23: NORTH WEST COMMISSIONING REGION
A24: RAE | B24: BRADFORD TEACHING HOSPITALS NHS FOUNDATION TRUST | C24: Y63 | D24: NORTH EAST AND YORKSHIRE COMMISSIONING REGION
A25: RY2 | B25: BRIDGEWATER COMMUNITY HEALTHCARE NHS FOUNDATION TRUST | C25: Y62 | D25: NORTH WEST COMMISSIONING REGION
A26: RXH | B26: BRIGHTON AND SUSSEX UNIVERSITY HOSPITALS NHS TRUST | C26: Y59 | D26: SOUTH EAST COMMISSIONING REGION
A27: RXQ | B27: BUCKINGHAMSHIRE HEALTHCARE NHS TRUST | C27: Y59 | D27: SOUTH EAST COMMISSIONING REGION
A28: RWY | B28: CALDERDALE AND HUDDERSFIELD NHS FOUNDATION TRUST | C28: Y63 | D28: NORTH EAST AND YORKSHIRE COMMISSIONING REGION
A29: RGT | B29: CAMBRIDGE UNIVERSITY HOSPITALS NHS FOUNDATION TRUST | C29: Y61 | D29: EAST OF ENGLAND COMMISSIONING REGION
A30: RT1 | B30: CAMBRIDGESHIRE AND PETERBOROUGH NHS FOUNDATION TRUST | C30: Y61 | D30: EAST OF ENGLAND COMMISSIONING REGION
A31: RYV | B31: CAMBRIDGESHIRE COMMUNITY SERVICES NHS TRUST | C31: Y61 | D31: EAST OF ENGLAND COMMISSIONING REGION
A32: RV3 | B32: CENTRAL AND NORTH WEST LONDON NHS FOUNDATION TRUST | C32: Y56 | D32: LONDON COMMISSIONING REGION
A33: RYX | B33: CENTRAL LONDON COMMUNITY HEALTHCARE NHS TRUST | C33: Y56 | D33: LONDON COMMISSIONING REGION
A34: RQM | B34: CHELSEA AND WESTMINSTER HOSPITAL NHS FOUNDATION TRUST | C34: Y56 | D34: LONDON COMMISSIONING REGION
A35: RXA | B35: CHESHIRE AND WIRRAL PARTNERSHIP NHS FOUNDATION TRUST | C35: Y62 | D35: NORTH WEST COMMISSIONING REGION
A36: RFS | B36: CHESTERFIELD ROYAL HOSPITAL NHS FOUNDATION TRUST | C36: Y60 | D36: MIDLANDS COMMISSIONING REGION
A37: RJ8 | B37: CORNWALL PARTNERSHIP NHS FOUNDATION TRUST | C37: Y58 | D37: SOUTH WEST COMMISSIONING REGION
A38: RJR | B38: COUNTESS OF CHESTER HOSPITAL NHS FOUNDATION TRUST | C38: Y62 | D38: NORTH WEST COMMISSIONING REGION
A39: RXP | B39: COUNTY DURHAM AND DARLINGTON NHS FOUNDATION TRUST | C39: Y63 | D39: NORTH EAST AND YORKSHIRE COMMISSIONING REGION
A40: RYG | B40: COVENTRY AND WARWICKSHIRE PARTNERSHIP NHS TRUST | C40: Y60 | D40: MIDLANDS COMMISSIONING REGION
A41: RJ6 | B41: CROYDON HEALTH SERVICES NHS TRUST | C41: Y56 | D41: LONDON COMMISSIONING REGION
A42: RNN | B42: CUMBRIA PARTNERSHIP NHS FOUNDATION TRUST | C42: Y63 | D42: NORTH EAST AND YORKSHIRE COMMISSIONING REGION
A43: RN7 | B43: DARTFORD AND GRAVESHAM NHS TRUST | C43: Y59 | D43: SOUTH EAST COMMISSIONING REGION
A44: RY8 | B44: DERBYSHIRE COMMUNITY HEALTH SERVICES NHS FOUNDATION TRUST | C44: Y60 | D44: MIDLANDS COMMISSIONING REGION
A45: RXM | B45: DERBYSHIRE HEALTHCARE NHS FOUNDATION TRUST | C45: Y60 | D45: MIDLANDS COMMISSIONING REGION
A46: RWV | B46: DEVON PARTNERSHIP NHS TRUST | C46: Y58 | D46: SOUTH WEST COMMISSIONING REGION
A47: RP5 | B47: DONCASTER AND BASSETLAW TEACHING HOSPITALS NHS FOUNDATION TRUST | C47: Y63 | D47: NORTH EAST AND YORKSHIRE COMMISSIONING REGION
A48: RBD | B48: DORSET COUNTY HOSPITAL NHS FOUNDATION TRUST | C48: Y58 | D48: SOUTH WEST COMMISSIONING REGION
A49: RDY | B49: DORSET HEALTHCARE UNIVERSITY NHS FOUNDATION TRUST | C49: Y58 | D49: SOUTH WEST COMMISSIONING REGION
A50: RYK | B50: DUDLEY AND WALSALL MENTAL HEALTH PARTNERSHIP NHS TRUST | C50: Y60 | D50: MIDLANDS COMMISSIONING REGION
A51: RWH | B51: EAST AND NORTH HERTFORDSHIRE NHS TRUST | C51: Y61 | D51: EAST OF ENGLAND COMMISSIONING REGION
A52: RJN | B52: EAST CHESHIRE NHS TRUST | C52: Y62 | D52: NORTH WEST COMMISSIONING REGION
A53: RVV | B53: EAST KENT HOSPITALS UNIVERSITY NHS FOUNDATION TRUST | C53: Y59 | D53: SOUTH EAST COMMISSIONING REGION
A54: RXR | B54: EAST LANCASHIRE HOSPITALS NHS TRUST | C54: Y62 | D54: NORTH WEST COMMISSIONING REGION
A55: RWK | B55: EAST LONDON NHS FOUNDATION TRUST | C55: Y56 | D55: LONDON COMMISSIONING REGION
A56: RX9 | B56: EAST MIDLANDS AMBULANCE SERVICE NHS TRUST | C56: Y60 | D56: MIDLANDS COMMISSIONING REGION
A57: RYC | B57: EAST OF ENGLAND AMBULANCE SERVICE NHS TRUST | C57: Y61 | D57: EAST OF ENGLAND COMMISSIONING REGION
A58: RDE | B58: EAST SUFFOLK AND NORTH ESSEX NHS FOUNDATION TRUST | C58: Y61 | D58: EAST OF ENGLAND COMMISSIONING REGION
A59: RXC | B59: EAST SUSSEX HEALTHCARE NHS TRUST | C59: Y59 | D59: SOUTH EAST COMMISSIONING REGION
A60: RVR | B60: EPSOM AND ST HELIER UNIVERSITY HOSPITALS NHS TRUST | C60: Y56 | D60: LONDON COMMISSIONING REGION
A61: R1L | B61: ESSEX PARTNERSHIP UNIVERSITY NHS FOUNDATION TRUST | C61: Y61 | D61: EAST OF ENGLAND COMMISSIONING REGION
A62: RDU | B62: FRIMLEY HEALTH NHS FOUNDATION TRUST | C62: Y59 | D62: SOUTH EAST COMMISSIONING REGION
A63: RR7 | B63: GATESHEAD HEALTH NHS FOUNDATION TRUST | C63: Y63 | D63: NORTH EAST AND YORKSHIRE COMMISSIONING REGION
A64: RLT | B64: GEORGE ELIOT HOSPITAL NHS TRUST | C64: Y60 | D64: MIDLANDS COMMISSIONING REGION
A65: R1J | B65: GLOUCESTERSHIRE CARE SERVICES NHS TRUST | C65: Y58 | D65: SOUTH WEST COMMISSIONING REGION
A66: RTE | B66: GLOUCESTERSHIRE HOSPITALS NHS FOUNDATION TRUST | C66: Y58 | D66: SOUTH WEST COMMISSIONING REGION
A67: RP4 | B67: GREAT ORMOND STREET HOSPITAL FOR CHILDREN NHS FOUNDATION TRUST | C67: Y56 | D67: LONDON COMMISSIONING REGION
A68: RN3 | B68: GREAT WESTERN HOSPITALS NHS FOUNDATION TRUST | C68: Y58 | D68: SOUTH WEST COMMISSIONING REGION
A69: RXV | B69: GREATER MANCHESTER MENTAL HEALTH NHS FOUNDATION TRUST | C69: Y62 | D69: NORTH WEST COMMISSIONING REGION
A70: RJ1 | B70: GUY'S AND ST THOMAS' NHS FOUNDATION TRUST | C70: Y56 | D70: LONDON COMMISSIONING REGION
A71: RN5 | B71: HAMPSHIRE HOSPITALS NHS FOUNDATION TRUST | C71: Y59 | D71: SOUTH EAST COMMISSIONING REGION
A72: RCD | B72: HARROGATE AND DISTRICT NHS FOUNDATION TRUST | C72: Y63 | D72: NORTH EAST AND YORKSHIRE COMMISSIONING REGION
A73: RY4 | B73: HERTFORDSHIRE COMMUNITY NHS TRUST | C73: Y61 | D73: EAST OF ENGLAND COMMISSIONING REGION
A74: RWR | B74: HERTFORDSHIRE PARTNERSHIP UNIVERSITY NHS FOUNDATION TRUST | C74: Y61 | D74: EAST OF ENGLAND COMMISSIONING REGION
A75: RQX | B75: HOMERTON UNIVERSITY HOSPITAL NHS FOUNDATION TRUST | C75: Y56 | D75: LONDON COMMISSIONING REGION
A76: RY9 | B76: HOUNSLOW AND RICHMOND COMMUNITY HEALTHCARE NHS TRUST | C76: Y56 | D76: LONDON COMMISSIONING REGION
A77: RWA | B77: HULL AND EAST YORKSHIRE HOSPITALS NHS TRUST | C77: Y63 | D77: NORTH EAST AND YORKSHIRE COMMISSIONING REGION
A78: RV9 | B78: HUMBER TEACHING NHS FOUNDATION TRUST | C78: Y63 | D78: NORTH EAST AND YORKSHIRE COMMISSIONING REGION
A79: RYJ | B79: IMPERIAL COLLEGE HEALTHCARE NHS TRUST | C79: Y56 | D79: LONDON COMMISSIONING REGION
A80: R1F | B80: ISLE OF WIGHT NHS TRUST | C80: Y59 | D80: SOUTH EAST COMMISSIONING REGION
A81: RGP | B81: JAMES PAGET UNIVERSITY HOSPITALS NHS FOUNDATION TRUST | C81: Y61 | D81: EAST OF ENGLAND COMMISSIONING REGION
A82: RXY | B82: KENT AND MEDWAY NHS AND SOCIAL CARE PARTNERSHIP TRUST | C82: Y59 | D82: SOUTH EAST COMMISSIONING REGION
A83: RYY | B83: KENT COMMUNITY HEALTH NHS FOUNDATION TRUST | C83: Y59 | D83: SOUTH EAST COMMISSIONING REGION
A84: RNQ | B84: KETTERING GENERAL HOSPITAL NHS FOUNDATION TRUST | C84: Y60 | D84: MIDLANDS COMMISSIONING REGION
A85: RJZ | B85: KING'S COLLEGE HOSPITAL NHS FOUNDATION TRUST | C85: Y56 | D85: LONDON COMMISSIONING REGION
A86: RAX | B86: KINGSTON HOSPITAL NHS FOUNDATION TRUST | C86: Y56 | D86: LONDON COMMISSIONING REGION
A87: RW5 | B87: LANCASHIRE CARE NHS FOUNDATION TRUST | C87: Y62 | D87: NORTH WEST COMMISSIONING REGION
A88: RXN | B88: LANCASHIRE TEACHING HOSPITALS NHS FOUNDATION TRUST | C88: Y62 | D88: NORTH WEST COMMISSIONING REGION
A89: RGD | B89: LEEDS AND YORK PARTNERSHIP NHS FOUNDATION TRUST | C89: Y63 | D89: NORTH EAST AND YORKSHIRE COMMISSIONING REGION
A90: RY6 | B90: LEEDS COMMUNITY HEALTHCARE NHS TRUST | C90: Y63 | D90: NORTH EAST AND YORKSHIRE COMMISSIONING REGION
A91: RR8 | B91: LEEDS TEACHING HOSPITALS NHS TRUST | C91: Y63 | D91: NORTH EAST AND YORKSHIRE COMMISSIONING REGION
A92: RT5 | B92: LEICESTERSHIRE PARTNERSHIP NHS TRUST | C92: Y60 | D92: MIDLANDS COMMISSIONING REGION
A93: RJ2 | B93: LEWISHAM AND GREENWICH NHS TRUST | C93: Y56 | D93: LONDON COMMISSIONING REGION
A94: RY5 | B94: LINCOLNSHIRE COMMUNITY HEALTH SERVICES NHS TRUST | C94: Y60 | D94: MIDLANDS COMMISSIONING REGION
A95: RP7 | B95: LINCOLNSHIRE PARTNERSHIP NHS FOUNDATION TRUST | C95: Y60 | D95: MIDLANDS COMMISSIONING REGION
A96: RBQ | B96: LIVERPOOL HEART AND CHEST HOSPITAL NHS FOUNDATION TRUST | C96: Y62 | D96: NORTH WEST COMMISSIONING REGION
A97: REP | B97: LIVERPOOL WOMEN'S NHS FOUNDATION TRUST | C97: Y62 | D97: NORTH WEST COMMISSIONING REGION
A98: RRU | B98: LONDON AMBULANCE SERVICE NHS TRUST | C98: Y56 | D98: LONDON COMMISSIONING REGION
A99: R1K | B99: LONDON NORTH WEST UNIVERSITY HEALTHCARE NHS TRUST | C99: Y56 | D99: LONDON COMMISSIONING REGION
A100: RC9 | B100: LUTON AND DUNSTABLE UNIVERSITY HOSPITAL NHS FOUNDATION TRUST | C100: Y61 | D100: EAST OF ENGLAND COMMISSIONING REGION
A101: RWF | B101: MAIDSTONE AND TUNBRIDGE WELLS NHS TRUST | C101: Y59 | D101: SOUTH EAST COMMISSIONING REGION
A102: R0A | B102: MANCHESTER UNIVERSITY NHS FOUNDATION TRUST | C102: Y62 | D102: NORTH WEST COMMISSIONING REGION
A103: RPA | B103: MEDWAY NHS FOUNDATION TRUST | C103: Y59 | D103: SOUTH EAST COMMISSIONING REGION
A104: RW4 | B104: MERSEY CARE NHS FOUNDATION TRUST | C104: Y62 | D104: NORTH WEST COMMISSIONING REGION
A105: RBT | B105: MID CHESHIRE HOSPITALS NHS FOUNDATION TRUST | C105: Y62 | D105: NORTH WEST COMMISSIONING REGION
A106: RQ8 | B106: MID ESSEX HOSPITAL SERVICES NHS TRUST | C106: Y61 | D106: EAST OF ENGLAND COMMISSIONING REGION
A107: RXF | B107: MID YORKSHIRE HOSPITALS NHS TRUST | C107: Y63 | D107: NORTH EAST AND YORKSHIRE COMMISSIONING REGION
A108: RRE | B108: MIDLANDS PARTNERSHIP NHS FOUNDATION TRUST | C108: Y60 | D108: MIDLANDS COMMISSIONING REGION
A109: RD8 | B109: MILTON KEYNES UNIVERSITY HOSPITAL NHS FOUNDATION TRUST | C109: Y61 | D109: EAST OF ENGLAND COMMISSIONING REGION
A110: RP6 | B110: MOORFIELDS EYE HOSPITAL NHS FOUNDATION TRUST | C110: Y56 | D110: LONDON COMMISSIONING REGION
A111: RM1 | B111: NORFOLK AND NORWICH UNIVERSITY HOSPITALS NHS FOUNDATION TRUST | C111: Y61 | D111: EAST OF ENGLAND COMMISSIONING REGION
A112: RMY | B112: NORFOLK AND SUFFOLK NHS FOUNDATION TRUST | C112: Y61 | D112: EAST OF ENGLAND COMMISSIONING REGION
A113: RY3 | B113: NORFOLK COMMUNITY HEALTH AND CARE NHS TRUST | C113: Y61 | D113: EAST OF ENGLAND COMMISSIONING REGION
A114: RVJ | B114: NORTH BRISTOL NHS TRUST | C114: Y58 | D114: SOUTH WEST COMMISSIONING REGION
A115: RNL | B115: NORTH CUMBRIA UNIVERSITY HOSPITALS NHS TRUST | C115: Y63 | D115: NORTH EAST AND YORKSHIRE COMMISSIONING REGION
A116: RX6 | B116: NORTH EAST AMBULANCE SERVICE NHS FOUNDATION TRUST | C116: Y63 | D116: NORTH EAST AND YORKSHIRE COMMISSIONING REGION
A117: RAT | B117: NORTH EAST LONDON NHS FOUNDATION TRUST | C117: Y56 | D117: LONDON COMMISSIONING REGION
A118: RAP | B118: NORTH MIDDLESEX UNIVERSITY HOSPITAL NHS TRUST | C118: Y56 | D118: LONDON COMMISSIONING REGION
A119: RLY | B119: NORTH STAFFORDSHIRE COMBINED HEALTHCARE NHS TRUST | C119: Y60 | D119: MIDLANDS COMMISSIONING REGION
A120: RVW | B120: NORTH TEES AND HARTLEPOOL NHS FOUNDATION TRUST | C120: Y63 | D120: NORTH EAST AND YORKSHIRE COMMISSIONING REGION
A121: RX7 | B121: NORTH WEST AMBULANCE SERVICE NHS TRUST | C121: Y62 | D121: NORTH WEST COMMISSIONING REGION
A122: RGN | B122: NORTH WEST ANGLIA NHS FOUNDATION TRUST | C122: Y61 | D122: EAST OF ENGLAND COMMISSIONING REGION
A123: RTV | B123: NORTH WEST BOROUGHS HEALTHCARE NHS FOUNDATION TRUST | C123: Y62 | D123: NORTH WEST COMMISSIONING REGION
A124: RNS | B124: NORTHAMPTON GENERAL HOSPITAL NHS TRUST | C124: Y60 | D124: MIDLANDS COMMISSIONING REGION
A125: RP1 | B125: NORTHAMPTONSHIRE HEALTHCARE NHS FOUNDATION TRUST | C125: Y60 | D125: MIDLANDS COMMISSIONING REGION
A126: RBZ | B126: NORTHERN DEVON HEALTHCARE NHS TRUST | C126: Y58 | D126: SOUTH WEST COMMISSIONING REGION
A127: RJL | B127: NORTHERN LINCOLNSHIRE AND GOOLE NHS FOUNDATION TRUST | C127: Y63 | D127: NORTH EAST AND YORKSHIRE COMMISSIONING REGION
A128: RX4 | B128: NORTHUMBERLAND, TYNE AND WEAR NHS FOUNDATION TRUST | C128: Y63 | D128: NORTH EAST AND YORKSHIRE COMMISSIONING REGION
A129: RTF | B129: NORTHUMBRIA HEALTHCARE NHS FOUNDATION TRUST | C129: Y63 | D129: NORTH EAST AND YORKSHIRE COMMISSIONING REGION
A130: RX1 | B130: NOTTINGHAM UNIVERSITY HOSPITALS NHS TRUST | C130: Y60 | D130: MIDLANDS COMMISSIONING REGION
A131: RHA | B131: NOTTINGHAMSHIRE HEALTHCARE NHS FOUNDATION TRUST | C131: Y60 | D131: MIDLANDS COMMISSIONING REGION
A132: RNU | B132: OXFORD HEALTH NHS FOUNDATION TRUST | C132: Y59 | D132: SOUTH EAST COMMISSIONING REGION
A133: RTH | B133: OXFORD UNIVERSITY HOSPITALS NHS FOUNDATION TRUST | C133: Y59 | D133: SOUTH EAST COMMISSIONING REGION
A134: RPG | B134: OXLEAS NHS FOUNDATION TRUST | C134: Y56 | D134: LONDON COMMISSIONING REGION
A135: RW6 | B135: PENNINE ACUTE HOSPITALS NHS TRUST | C135: Y62 | D135: NORTH WEST COMMISSIONING REGION
A136: RT2 | B136: PENNINE CARE NHS FOUNDATION TRUST | C136: Y62 | D136: NORTH WEST COMMISSIONING REGION
A137: RD3 | B137: POOLE HOSPITAL NHS FOUNDATION TRUST | C137: Y58 | D137: SOUTH WEST COMMISSIONING REGION
A138: RHU | B138: PORTSMOUTH HOSPITALS NHS TRUST | C138: Y59 | D138: SOUTH EAST COMMISSIONING REGION
A139: RPC | B139: QUEEN VICTORIA HOSPITAL NHS FOUNDATION TRUST | C139: Y59 | D139: SOUTH EAST COMMISSIONING REGION
A140: RXE | B140: ROTHERHAM DONCASTER AND SOUTH HUMBER NHS FOUNDATION TRUST | C140: Y63 | D140: NORTH EAST AND YORKSHIRE COMMISSIONING REGION
A141: RHW | B141: ROYAL BERKSHIRE NHS FOUNDATION TRUST | C141: Y59 | D141: SOUTH EAST COMMISSIONING REGION
A142: RT3 | B142: ROYAL BROMPTON & HAREFIELD NHS FOUNDATION TRUST | C142: Y56 | D142: LONDON COMMISSIONING REGION
A143: REF | B143: ROYAL CORNWALL HOSPITALS NHS TRUST | C143: Y58 | D143: SOUTH WEST COMMISSIONING REGION
A144: RH8 | B144: ROYAL DEVON AND EXETER NHS FOUNDATION TRUST | C144: Y58 | D144: SOUTH WEST COMMISSIONING REGION
A145: RAL | B145: ROYAL FREE LONDON NHS FOUNDATION TRUST | C145: Y56 | D145: LONDON COMMISSIONING REGION
A146: RQ6 | B146: ROYAL LIVERPOOL AND BROADGREEN UNIVERSITY HOSPITALS NHS TRUST | C146: Y62 | D146: NORTH WEST COMMISSIONING REGION
A147: RAN | B147: ROYAL NATIONAL ORTHOPAEDIC HOSPITAL NHS TRUST | C147: Y56 | D147: LONDON COMMISSIONING REGION
A148: RGM | B148: ROYAL PAPWORTH HOSPITAL NHS FOUNDATION TRUST | C148: Y61 | D148: EAST OF ENGLAND COMMISSIONING REGION
A149: RA2 | B149: ROYAL SURREY COUNTY HOSPITAL NHS FOUNDATION TRUST | C149: Y59 | D149: SOUTH EAST COMMISSIONING REGION
A150: RD1 | B150: ROYAL UNITED HOSPITALS BATH NHS FOUNDATION TRUST | C150: Y58 | D150: SOUTH WEST COMMISSIONING REGION
A151: RM3 | B151: SALFORD ROYAL NHS FOUNDATION TRUST | C151: Y62 | D151: NORTH WEST COMMISSIONING REGION
A152: RNZ | B152: SALISBURY NHS FOUNDATION TRUST | C152: Y58 | D152: SOUTH WEST COMMISSIONING REGION
A153: RXK | B153: SANDWELL AND WEST BIRMINGHAM HOSPITALS NHS TRUST | C153: Y60 | D153: MIDLANDS COMMISSIONING REGION
A154: RCU | B154: SHEFFIELD CHILDREN'S NHS FOUNDATION TRUST | C154: Y63 | D154: NORTH EAST AND YORKSHIRE COMMISSIONING REGION
A155: RHQ | B155: SHEFFIELD TEACHING HOSPITALS NHS FOUNDATION TRUST | C155: Y63 | D155: NORTH EAST AND YORKSHIRE COMMISSIONING REGION
A156: RK5 | B156: SHERWOOD FOREST HOSPITALS NHS FOUNDATION TRUST | C156: Y60 | D156: MIDLANDS COMMISSIONING REGION
A157: RXW | B157: SHREWSBURY AND TELFORD HOSPITAL NHS TRUST | C157: Y60 | D157: MIDLANDS COMMISSIONING REGION
A158: R1D | B158: SHROPSHIRE COMMUNITY HEALTH NHS TRUST | C158: Y60 | D158: MIDLANDS COMMISSIONING REGION
A159: R1C | B159: SOLENT NHS TRUST | C159: Y59 | D159: SOUTH EAST COMMISSIONING REGION
A160: RH5 | B160: SOMERSET PARTNERSHIP NHS FOUNDATION TRUST | C160: Y58 | D160: SOUTH WEST COMMISSIONING REGION
A161: RYE | B161: SOUTH CENTRAL AMBULANCE SERVICE NHS FOUNDATION TRUST | C161: Y59 | D161: SOUTH EAST COMMISSIONING REGION
A162: RYD | B162: SOUTH EAST COAST AMBULANCE SERVICE NHS FOUNDATION TRUST | C162: Y59 | D162: SOUTH EAST COMMISSIONING REGION
A163: RV5 | B163: SOUTH LONDON AND MAUDSLEY NHS FOUNDATION TRUST | C163: Y56 | D163: LONDON COMMISSIONING REGION
A164: RTR | B164: SOUTH TEES HOSPITALS NHS FOUNDATION TRUST | C164: Y63 | D164: NORTH EAST AND YORKSHIRE COMMISSIONING REGION
A165: R0B | B165: South Tyneside and Sunderland NHS Foundation Trust. | C165: Y63 | D165: NORTH EAST AND YORKSHIRE COMMISSIONING REGION
A166: RJC | B166: SOUTH WARWICKSHIRE NHS FOUNDATION TRUST | C166: Y60 | D166: MIDLANDS COMMISSIONING REGION
A167: RQY | B167: SOUTH WEST LONDON AND ST GEORGE'S MENTAL HEALTH NHS TRUST | C167: Y56 | D167: LONDON COMMISSIONING REGION
A168: RXG | B168: SOUTH WEST YORKSHIRE PARTNERSHIP NHS FOUNDATION TRUST | C168: Y63 | D168: NORTH EAST AND YORKSHIRE COMMISSIONING REGION
A169: RYF | B169: SOUTH WESTERN AMBULANCE SERVICE NHS FOUNDATION TRUST | C169: Y58 | D169: SOUTH WEST COMMISSIONING REGION
A170: RAJ | B170: SOUTHEND UNIVERSITY HOSPITAL NHS FOUNDATION TRUST | C170: Y61 | D170: EAST OF ENGLAND COMMISSIONING REGION
A171: RW1 | B171: SOUTHERN HEALTH NHS FOUNDATION TRUST | C171: Y59 | D171: SOUTH EAST COMMISSIONING REGION
A172: RVY | B172: SOUTHPORT AND ORMSKIRK HOSPITAL NHS TRUST | C172: Y62 | D172: NORTH WEST COMMISSIONING REGION
A173: RJ7 | B173: ST GEORGE'S UNIVERSITY HOSPITALS NHS FOUNDATION TRUST | C173: Y56 | D173: LONDON COMMISSIONING REGION
A174: RBN | B174: ST HELENS AND KNOWSLEY TEACHING HOSPITALS NHS TRUST | C174: Y62 | D174: NORTH WEST COMMISSIONING REGION
A175: RWJ | B175: STOCKPORT NHS FOUNDATION TRUST | C175: Y62 | D175: NORTH WEST COMMISSIONING REGION
A176: RXX | B176: SURREY AND BORDERS PARTNERSHIP NHS FOUNDATION TRUST | C176: Y59 | D176: SOUTH EAST COMMISSIONING REGION
A177: RTP | B177: SURREY AND SUSSEX HEALTHCARE NHS TRUST | C177: Y59 | D177: SOUTH EAST COMMISSIONING REGION
A178: RDR | B178: SUSSEX COMMUNITY NHS FOUNDATION TRUST | C178: Y59 | D178: SOUTH EAST COMMISSIONING REGION
A179: RX2 | B179: SUSSEX PARTNERSHIP NHS FOUNDATION TRUST | C179: Y59 | D179: SOUTH EAST COMMISSIONING REGION
A180: RMP | B180: TAMESIDE AND GLOSSOP INTEGRATED CARE NHS FOUNDATION TRUST | C180: Y62 | D180: NORTH WEST COMMISSIONING REGION
A181: RBA | B181: TAUNTON AND SOMERSET NHS FOUNDATION TRUST | C181: Y58 | D181: SOUTH WEST COMMISSIONING REGION
A182: RNK | B182: TAVISTOCK AND PORTMAN NHS FOUNDATION TRUST | C182: Y56 | D182: LONDON COMMISSIONING REGION
A183: RX3 | B183: TEES, ESK AND WEAR VALLEYS NHS FOUNDATION TRUST | C183: Y63 | D183: NORTH EAST AND YORKSHIRE COMMISSIONING REGION
A184: RBV | B184: THE CHRISTIE NHS FOUNDATION TRUST | C184: Y62 | D184: NORTH WEST COMMISSIONING REGION
A185: REN | B185: THE CLATTERBRIDGE CANCER CENTRE NHS FOUNDATION TRUST | C185: Y62 | D185: NORTH WEST COMMISSIONING REGION
A186: RNA | B186: THE DUDLEY GROUP NHS FOUNDATION TRUST | C186: Y60 | D186: MIDLANDS COMMISSIONING REGION
A187: RAS | B187: THE HILLINGDON HOSPITALS NHS FOUNDATION TRUST | C187: Y56 | D187: LONDON COMMISSIONING REGION
A188: RTD | B188: THE NEWCASTLE UPON TYNE HOSPITALS NHS FOUNDATION TRUST | C188: Y63 | D188: NORTH EAST AND YORKSHIRE COMMISSIONING REGION
A189: RQW | B189: THE PRINCESS ALEXANDRA HOSPITAL NHS TRUST | C189: Y61 | D189: EAST OF ENGLAND COMMISSIONING REGION
A190: RCX | B190: THE QUEEN ELIZABETH HOSPITAL, KING'S LYNN, NHS FOUNDATION TRUST | C190: Y61 | D190: EAST OF ENGLAND COMMISSIONING REGION
A191: RL1 | B191: THE ROBERT JONES AND AGNES HUNT ORTHOPAEDIC HOSPITAL NHS FOUNDATION TRUST | C191: Y60 | D191: MIDLANDS COMMISSIONING REGION
A192: RFR | B192: THE ROTHERHAM NHS FOUNDATION TRUST | C192: Y63 | D192: NORTH EAST AND YORKSHIRE COMMISSIONING REGION
A193: RDZ | B193: THE ROYAL BOURNEMOUTH AND CHRISTCHURCH HOSPITALS NHS FOUNDATION TRUST | C193: Y58 | D193: SOUTH WEST COMMISSIONING REGION
A194: RPY | B194: THE ROYAL MARSDEN NHS FOUNDATION TRUST | C194: Y56 | D194: LONDON COMMISSIONING REGION
A195: RRJ | B195: THE ROYAL ORTHOPAEDIC HOSPITAL NHS FOUNDATION TRUST | C195: Y60 | D195: MIDLANDS COMMISSIONING REGION
A196: RL4 | B196: THE ROYAL WOLVERHAMPTON NHS TRUST | C196: Y60 | D196: MIDLANDS COMMISSIONING REGION
A197: RET | B197: THE WALTON CENTRE NHS FOUNDATION TRUST | C197: Y62 | D197: NORTH WEST COMMISSIONING REGION
A198: RA9 | B198: TORBAY AND SOUTH DEVON NHS FOUNDATION TRUST | C198: Y58 | D198: SOUTH WEST COMMISSIONING REGION
A199: RWD | B199: UNITED LINCOLNSHIRE HOSPITALS NHS TRUST | C199: Y60 | D199: MIDLANDS COMMISSIONING REGION
A200: RRV | B200: UNIVERSITY COLLEGE LONDON HOSPITALS NHS FOUNDATION TRUST | C200: Y56 | D200: LONDON COMMISSIONING REGION
... 4299 more rows
